Workbook

Sheet Resumo
B2: Série | C2: Mês | D2: Data | E2: Preços | F2: Dias | G2: Taxa | H2: Contratos | I2: Variação | J2: DV01
C3: Vencimento | D3: Vencimento | E3: Futuros | F3: Úteis | G3: Pré | H3: em Aberto | I3: Quantidade
B4: ='Contratos em Aberto DI'!A2 -> X22 | C4: =VLOOKUP(MID(B4,1,1),Legendas!$B$8:$D$19,2,FALSE) -> Novembro | D4: =WORKDAY(EOMONTH("15/"&VLOOKUP(MID(B4,1,1),Legendas!$B$8:$D$19,3,FALSE)&"/"&"20"&RIGHT(B4,2),-1),1,Feriados!$A$2:$A$937) -> 2022-11-01 | E4: =100000/(1+G4)^(F4/252) -> 99695.81272 | F4: =NETWORKDAYS('Curva de Juros Pré'!$B$1,D4,Feriados!$A$2:$A$937)-1 -> 6 | G4: =InterpolaPre(F4) -> 0.1365 | H4: =VLOOKUP(B4,'Contratos em Aberto DI'!$A$2:$C$40,2,FALSE) -> 721057 | I4: =VLOOKUP(B4,'Contratos em Aberto DI'!$A$2:$C$40,3,FALSE) -> -3770 | J4: =100000/(1+G4+0.01%)^(F4/252)-100000/(1+G4)^(F4/252) -> -0.2088519943
B5: ='Contratos em Aberto DI'!A3 -> Z22 | C5: =VLOOKUP(MID(B5,1,1),Legendas!$B$8:$D$19,2,FALSE) -> Dezembro | D5: =WORKDAY(EOMONTH("15/"&VLOOKUP(MID(B5,1,1),Legendas!$B$8:$D$19,3,FALSE)&"/"&"20"&RIGHT(B5,2),-1),1,Feriados!$A$2:$A$937) -> 2022-12-01 | E5: =100000/(1+G5)^(F5/252) -> 98686.73038 | F5: =NETWORKDAYS('Curva de Juros Pré'!$B$1,D5,Feriados!$A$2:$A$937)-1 -> 26 | G5: =InterpolaPre(F5) -> 0.1367 | H5: =VLOOKUP(B5,'Contratos em Aberto DI'!$A$2:$C$40,2,FALSE) -> 447222 | I5: =VLOOKUP(B5,'Contratos em Aberto DI'!$A$2:$C$40,3,FALSE) -> -1475 | J5: =100000/(1+G5+0.01%)^(F5/252)-100000/(1+G5)^(F5/252) -> -0.8957042485
B6: ='Contratos em Aberto DI'!A4 -> F23 | C6: =VLOOKUP(MID(B6,1,1),Legendas!$B$8:$D$19,2,FALSE) -> Janeiro | D6: =WORKDAY(EOMONTH("15/"&VLOOKUP(MID(B6,1,1),Legendas!$B$8:$D$19,3,FALSE)&"/"&"20"&RIGHT(B6,2),-1),1,Feriados!$A$2:$A$937) -> 2023-01-02 | E6: 97585.71196 | F6: =NETWORKDAYS('Curva de Juros Pré'!$B$1,D6,Feriados!$A$2:$A$937)-1 -> 48 | G6: =InterpolaPre(F6) -> 0.1369 | H6: =VLOOKUP(B6,'Contratos em Aberto DI'!$A$2:$C$40,2,FALSE) -> 5761509 | I6: =VLOOKUP(B6,'Contratos em Aberto DI'!$A$2:$C$40,3,FALSE) -> 23135 | J6: -1.634865119
B7: ='Contratos em Aberto DI'!A5 -> G23 | C7: =VLOOKUP(MID(B7,1,1),Legendas!$B$8:$D$19,2,FALSE) -> Fevereiro | D7: =WORKDAY(EOMONTH("15/"&VLOOKUP(MID(B7,1,1),Legendas!$B$8:$D$19,3,FALSE)&"/"&"20"&RIGHT(B7,2),-1),1,Feriados!$A$2:$A$937) -> 2023-02-01 | E7: 96498.72887 | F7: =NETWORKDAYS('Curva de Juros Pré'!$B$1,D7,Feriados!$A$2:$A$937)-1 -> 70 | G7: =InterpolaPre(F7) -> 0.1369 | H7: =VLOOKUP(B7,'Contratos em Aberto DI'!$A$2:$C$40,2,FALSE) -> 170475 | I7: =VLOOKUP(B7,'Contratos em Aberto DI'!$A$2:$C$40,3,FALSE) -> 10770 | J7: -2.357612475
B8: ='Contratos em Aberto DI'!A6 -> H23 | C8: =VLOOKUP(MID(B8,1,1),Legendas!$B$8:$D$19,2,FALSE) -> Março | D8: =WORKDAY(EOMONTH("15/"&VLOOKUP(MID(B8,1,1),Legendas!$B$8:$D$19,3,FALSE)&"/"&"20"&RIGHT(B8,2),-1),1,Feriados!$A$2:$A$937) -> 2023-03-01 | E8: 95615.45405 | F8: =NETWORKDAYS('Curva de Juros Pré'!$B$1,D8,Feriados!$A$2:$A$937)-1 -> 88 | G8: =InterpolaPre(F8) -> 0.137 | H8: =VLOOKUP(B8,'Contratos em Aberto DI'!$A$2:$C$40,2,FALSE) -> 134242 | I8: =VLOOKUP(B8,'Contratos em Aberto DI'!$A$2:$C$40,3,FALSE) -> 335 | J8: -2.936459341
B9: ='Contratos em Aberto DI'!A7 -> J23 | C9: =VLOOKUP(MID(B9,1,1),Legendas!$B$8:$D$19,2,FALSE) -> Abril | D9: =WORKDAY(EOMONTH("15/"&VLOOKUP(MID(B9,1,1),Legendas!$B$8:$D$19,3,FALSE)&"/"&"20"&RIGHT(B9,2),-1),1,Feriados!$A$2:$A$937) -> 2023-04-03 | E9: 94501.53066 | F9: =NETWORKDAYS('Curva de Juros Pré'!$B$1,D9,Feriados!$A$2:$A$937)-1 -> 111 | G9: =InterpolaPre(F9) -> 0.137 | H9: =VLOOKUP(B9,'Contratos em Aberto DI'!$A$2:$C$40,2,FALSE) -> 1115201 | I9: =VLOOKUP(B9,'Contratos em Aberto DI'!$A$2:$C$40,3,FALSE) -> -19860 | J9: -3.660777275
B10: ='Contratos em Aberto DI'!A8 -> K23 | C10: =VLOOKUP(MID(B10,1,1),Legendas!$B$8:$D$19,2,FALSE) -> Maio | D10: =WORKDAY(EOMONTH("15/"&VLOOKUP(MID(B10,1,1),Legendas!$B$8:$D$19,3,FALSE)&"/"&"20"&RIGHT(B10,2),-1),1,Feriados!$A$2:$A$937) -> 2023-05-02 | E10: 93647.2572 | F10: =NETWORKDAYS('Curva de Juros Pré'!$B$1,D10,Feriados!$A$2:$A$937)-1 -> 129 | G10: =InterpolaPre(F10) -> 0.1368 | H10: =VLOOKUP(B10,'Contratos em Aberto DI'!$A$2:$C$40,2,FALSE) -> 95402 | I10: =VLOOKUP(B10,'Contratos em Aberto DI'!$A$2:$C$40,3,FALSE) -> 0 | J10: -4.216686252
B11: ='Contratos em Aberto DI'!A9 -> M23 | C11: =VLOOKUP(MID(B11,1,1),Legendas!$B$8:$D$19,2,FALSE) -> Junho | D11: =WORKDAY(EOMONTH("15/"&VLOOKUP(MID(B11,1,1),Legendas!$B$8:$D$19,3,FALSE)&"/"&"20"&RIGHT(B11,2),-1),1,Feriados!$A$2:$A$937) -> 2023-06-01 | E11: 92629.26928 | F11: =NETWORKDAYS('Curva de Juros Pré'!$B$1,D11,Feriados!$A$2:$A$937)-1 -> 151 | G11: =InterpolaPre(F11) -> 0.1363 | H11: =VLOOKUP(B11,'Contratos em Aberto DI'!$A$2:$C$40,2,FALSE) -> 49640 | I11: =VLOOKUP(B11,'Contratos em Aberto DI'!$A$2:$C$40,3,FALSE) -> -40 | J11: -4.884285911
B12: ='Contratos em Aberto DI'!A10 -> N23 | C12: =VLOOKUP(MID(B12,1,1),Legendas!$B$8:$D$19,2,FALSE) -> Julho | D12: =WORKDAY(EOMONTH("15/"&VLOOKUP(MID(B12,1,1),Legendas!$B$8:$D$19,3,FALSE)&"/"&"20"&RIGHT(B12,2),-1),1,Feriados!$A$2:$A$937) -> 2023-07-03 | E12: 91697.75311 | F12: =NETWORKDAYS('Curva de Juros Pré'!$B$1,D12,Feriados!$A$2:$A$937)-1 -> 172 | G12: =InterpolaPre(F12) -> 0.1354 | H12: =VLOOKUP(B12,'Contratos em Aberto DI'!$A$2:$C$40,2,FALSE) -> 2497117 | I12: =VLOOKUP(B12,'Contratos em Aberto DI'!$A$2:$C$40,3,FALSE) -> -6128 | J12: -5.511953345
B13: ='Contratos em Aberto DI'!A11 -> Q23 | C13: =VLOOKUP(MID(B13,1,1),Legendas!$B$8:$D$19,2,FALSE) -> Agosto | D13: =WORKDAY(EOMONTH("15/"&VLOOKUP(MID(B13,1,1),Legendas!$B$8:$D$19,3,FALSE)&"/"&"20"&RIGHT(B13,2),-1),1,Feriados!$A$2:$A$937) -> 2023-08-01 | E13: 90787.63692 | F13: =NETWORKDAYS('Curva de Juros Pré'!$B$1,D13,Feriados!$A$2:$A$937)-1 -> 193 | G13: =InterpolaPre(F13) -> 0.1345 | H13: =VLOOKUP(B13,'Contratos em Aberto DI'!$A$2:$C$40,2,FALSE) -> 45660 | I13: =VLOOKUP(B13,'Contratos em Aberto DI'!$A$2:$C$40,3,FALSE) -> 0 | J13: -6.128372882
B14: ='Contratos em Aberto DI'!A12 -> U23 | C14: =VLOOKUP(MID(B14,1,1),Legendas!$B$8:$D$19,2,FALSE) -> Setembro | D14: =WORKDAY(EOMONTH("15/"&VLOOKUP(MID(B14,1,1),Legendas!$B$8:$D$19,3,FALSE)&"/"&"20"&RIGHT(B14,2),-1),1,Feriados!$A$2:$A$937) -> 2023-09-01 | E14: 89822.64126 | F14: =NETWORKDAYS('Curva de Juros Pré'!$B$1,D14,Feriados!$A$2:$A$937)-1 -> 216 | G14: =InterpolaPre(F14) -> 0.1334 | H14: =VLOOKUP(B14,'Contratos em Aberto DI'!$A$2:$C$40,2,FALSE) -> 44090 | I14: =VLOOKUP(B14,'Contratos em Aberto DI'!$A$2:$C$40,3,FALSE) -> -20 | J14: -6.792352937
B15: ='Contratos em Aberto DI'!A13 -> V23 | C15: =VLOOKUP(MID(B15,1,1),Legendas!$B$8:$D$19,2,FALSE) -> Outubro | D15: =WORKDAY(EOMONTH("15/"&VLOOKUP(MID(B15,1,1),Legendas!$B$8:$D$19,3,FALSE)&"/"&"20"&RIGHT(B15,2),-1),1,Feriados!$A$2:$A$937) -> 2023-10-02 | E15: 89007.93017 | F15: =NETWORKDAYS('Curva de Juros Pré'!$B$1,D15,Feriados!$A$2:$A$937)-1 -> 236 | G15: =InterpolaPre(F15) -> 0.1324 | H15: =VLOOKUP(B15,'Contratos em Aberto DI'!$A$2:$C$40,2,FALSE) -> 395875 | I15: =VLOOKUP(B15,'Contratos em Aberto DI'!$A$2:$C$40,3,FALSE) -> -5710 | J15: -7.36042973
B16: ='Contratos em Aberto DI'!A14 -> F24 | C16: =VLOOKUP(MID(B16,1,1),Legendas!$B$8:$D$19,2,FALSE) -> Janeiro | D16: =WORKDAY(EOMONTH("15/"&VLOOKUP(MID(B16,1,1),Legendas!$B$8:$D$19,3,FALSE)&"/"&"20"&RIGHT(B16,2),-1),1,Feriados!$A$2:$A$937) -> 2024-01-02 | E16: 86693.6137 | F16: =NETWORKDAYS('Curva de Juros Pré'!$B$1,D16,Feriados!$A$2:$A$937)-1 -> 297 | G16: =InterpolaPre(F16) -> 0.1288 | H16: =VLOOKUP(B16,'Contratos em Aberto DI'!$A$2:$C$40,2,FALSE) -> 4766724 | I16: =VLOOKUP(B16,'Contratos em Aberto DI'!$A$2:$C$40,3,FALSE) -> -36613 | J16: -9.050740368
B17: ='Contratos em Aberto DI'!A15 -> J24 | C17: =VLOOKUP(MID(B17,1,1),Legendas!$B$8:$D$19,2,FALSE) -> Abril | D17: =WORKDAY(EOMONTH("15/"&VLOOKUP(MID(B17,1,1),Legendas!$B$8:$D$19,3,FALSE)&"/"&"20"&RIGHT(B17,2),-1),1,Feriados!$A$2:$A$937) -> 2024-04-01 | E17: 84538.93855 | F17: =NETWORKDAYS('Curva de Juros Pré'!$B$1,D17,Feriados!$A$2:$A$937)-1 -> 358 | G17: =InterpolaPre(F17) -> 0.1255 | H17: =VLOOKUP(B17,'Contratos em Aberto DI'!$A$2:$C$40,2,FALSE) -> 835139 | I17: =VLOOKUP(B17,'Contratos em Aberto DI'!$A$2:$C$40,3,FALSE) -> 4973 | J17: -10.66957393
B18: ='Contratos em Aberto DI'!A16 -> N24 | C18: =VLOOKUP(MID(B18,1,1),Legendas!$B$8:$D$19,2,FALSE) -> Julho | D18: =WORKDAY(EOMONTH("15/"&VLOOKUP(MID(B18,1,1),Legendas!$B$8:$D$19,3,FALSE)&"/"&"20"&RIGHT(B18,2),-1),1,Feriados!$A$2:$A$937) -> 2024-07-01 | E18: 82480.42078 | F18: =NETWORKDAYS('Curva de Juros Pré'!$B$1,D18,Feriados!$A$2:$A$937)-1 -> 421 | G18: =InterpolaPre(F18) -> 0.1222 | H18: =VLOOKUP(B18,'Contratos em Aberto DI'!$A$2:$C$40,2,FALSE) -> 934963 | I18: =VLOOKUP(B18,'Contratos em Aberto DI'!$A$2:$C$40,3,FALSE) -> 5506 | J18: -12.2775153
B19: ='Contratos em Aberto DI'!A17 -> V24 | C19: =VLOOKUP(MID(B19,1,1),Legendas!$B$8:$D$19,2,FALSE) -> Outubro | D19: =WORKDAY(EOMONTH("15/"&VLOOKUP(MID(B19,1,1),Legendas!$B$8:$D$19,3,FALSE)&"/"&"20"&RIGHT(B19,2),-1),1,Feriados!$A$2:$A$937) -> 2024-10-01 | E19: 80358.92252 | F19: =NETWORKDAYS('Curva de Juros Pré'!$B$1,D19,Feriados!$A$2:$A$937)-1 -> 487 | G19: =InterpolaPre(F19) -> 0.1198 | H19: =VLOOKUP(B19,'Contratos em Aberto DI'!$A$2:$C$40,2,FALSE) -> 385270 | I19: =VLOOKUP(B19,'Contratos em Aberto DI'!$A$2:$C$40,3,FALSE) -> 525 | J19: -13.86644708
B20: ='Contratos em Aberto DI'!A18 -> F25 | C20: =VLOOKUP(MID(B20,1,1),Legendas!$B$8:$D$19,2,FALSE) -> Janeiro | D20: =WORKDAY(EOMONTH("15/"&VLOOKUP(MID(B20,1,1),Legendas!$B$8:$D$19,3,FALSE)&"/"&"20"&RIGHT(B20,2),-1),1,Feriados!$A$2:$A$937) -> 2025-01-02 | E20: 78327.04718 | F20: =NETWORKDAYS('Curva de Juros Pré'!$B$1,D20,Feriados!$A$2:$A$937)-1 -> 551 | G20: =InterpolaPre(F20) -> 0.1182 | H20: =VLOOKUP(B20,'Contratos em Aberto DI'!$A$2:$C$40,2,FALSE) -> 3239147 | I20: =VLOOKUP(B20,'Contratos em Aberto DI'!$A$2:$C$40,3,FALSE) -> -25788 | J20: -15.31374631
B21: ='Contratos em Aberto DI'!A19 -> J25 | C21: =VLOOKUP(MID(B21,1,1),Legendas!$B$8:$D$19,2,FALSE) -> Abril | D21: =WORKDAY(EOMONTH("15/"&VLOOKUP(MID(B21,1,1),Legendas!$B$8:$D$19,3,FALSE)&"/"&"20"&RIGHT(B21,2),-1),1,Feriados!$A$2:$A$937) -> 2025-04-01 | E21: 76386.42819 | F21: =NETWORKDAYS('Curva de Juros Pré'!$B$1,D21,Feriados!$A$2:$A$937)-1 -> 612 | G21: =InterpolaPre(F21) -> 0.1173 | H21: =VLOOKUP(B21,'Contratos em Aberto DI'!$A$2:$C$40,2,FALSE) -> 90081 | I21: =VLOOKUP(B21,'Contratos em Aberto DI'!$A$2:$C$40,3,FALSE) -> -30 | J21: -16.6008626
B22: ='Contratos em Aberto DI'!A20 -> N25 | C22: =VLOOKUP(MID(B22,1,1),Legendas!$B$8:$D$19,2,FALSE) -> Julho | D22: =WORKDAY(EOMONTH("15/"&VLOOKUP(MID(B22,1,1),Legendas!$B$8:$D$19,3,FALSE)&"/"&"20"&RIGHT(B22,2),-1),1,Feriados!$A$2:$A$937) -> 2025-07-01 | E22: 74433.99997 | F22: =NETWORKDAYS('Curva de Juros Pré'!$B$1,D22,Feriados!$A$2:$A$937)-1 -> 673 | G22: =InterpolaPre(F22) -> 0.1169 | H22: =VLOOKUP(B22,'Contratos em Aberto DI'!$A$2:$C$40,2,FALSE) -> 994265 | I22: =VLOOKUP(B22,'Contratos em Aberto DI'!$A$2:$C$40,3,FALSE) -> -2810 | J22: -17.79509169
B23: ='Contratos em Aberto DI'!A21 -> V25 | C23: =VLOOKUP(MID(B23,1,1),Legendas!$B$8:$D$19,2,FALSE) -> Outubro | D23: =WORKDAY(EOMONTH("15/"&VLOOKUP(MID(B23,1,1),Legendas!$B$8:$D$19,3,FALSE)&"/"&"20"&RIGHT(B23,2),-1),1,Feriados!$A$2:$A$937) -> 2025-10-01 | E23: 72252.71093 | F23: =NETWORKDAYS('Curva de Juros Pré'!$B$1,D23,Feriados!$A$2:$A$937)-1 -> 739 | G23: =InterpolaPre(F23) -> 0.1172 | H23: =VLOOKUP(B23,'Contratos em Aberto DI'!$A$2:$C$40,2,FALSE) -> 61492 | I23: =VLOOKUP(B23,'Contratos em Aberto DI'!$A$2:$C$40,3,FALSE) -> -220 | J23: -18.96228571
B24: ='Contratos em Aberto DI'!A22 -> F26 | C24: =VLOOKUP(MID(B24,1,1),Legendas!$B$8:$D$19,2,FALSE) -> Janeiro | D24: =WORKDAY(EOMONTH("15/"&VLOOKUP(MID(B24,1,1),Legendas!$B$8:$D$19,3,FALSE)&"/"&"20"&RIGHT(B24,2),-1),1,Feriados!$A$2:$A$937) -> 2026-01-02 | E24: 70276.73041 | F24: =NETWORKDAYS('Curva de Juros Pré'!$B$1,D24,Feriados!$A$2:$A$937)-1 -> 804 | G24: =InterpolaPre(F24) -> 0.1169 | H24: =VLOOKUP(B24,'Contratos em Aberto DI'!$A$2:$C$40,2,FALSE) -> 1409237 | I24: =VLOOKUP(B24,'Contratos em Aberto DI'!$A$2:$C$40,3,FALSE) -> 3024 | J24: -20.07110574
B25: ='Contratos em Aberto DI'!A23 -> J26 | C25: =VLOOKUP(MID(B25,1,1),Legendas!$B$8:$D$19,2,FALSE) -> Abril | D25: =WORKDAY(EOMONTH("15/"&VLOOKUP(MID(B25,1,1),Legendas!$B$8:$D$19,3,FALSE)&"/"&"20"&RIGHT(B25,2),-1),1,Feriados!$A$2:$A$937) -> 2026-04-01 | E25: 68357.89537 | F25: =NETWORKDAYS('Curva de Juros Pré'!$B$1,D25,Feriados!$A$2:$A$937)-1 -> 865 | G25: =InterpolaPre(F25) -> 0.1172 | H25: =VLOOKUP(B25,'Contratos em Aberto DI'!$A$2:$C$40,2,FALSE) -> 36370 | I25: =VLOOKUP(B25,'Contratos em Aberto DI'!$A$2:$C$40,3,FALSE) -> -120 | J25: -20.99844688
B26: ='Contratos em Aberto DI'!A24 -> N26 | C26: =VLOOKUP(MID(B26,1,1),Legendas!$B$8:$D$19,2,FALSE) -> Julho | D26: =WORKDAY(EOMONTH("15/"&VLOOKUP(MID(B26,1,1),Legendas!$B$8:$D$19,3,FALSE)&"/"&"20"&RIGHT(B26,2),-1),1,Feriados!$A$2:$A$937) -> 2026-07-01 | E26: 66548.44971 | F26: =NETWORKDAYS('Curva de Juros Pré'!$B$1,D26,Feriados!$A$2:$A$937)-1 -> 926 | G26: =InterpolaPre(F26) -> 0.1172 | H26: =VLOOKUP(B26,'Contratos em Aberto DI'!$A$2:$C$40,2,FALSE) -> 111945 | I26: =VLOOKUP(B26,'Contratos em Aberto DI'!$A$2:$C$40,3,FALSE) -> -570 | J26: -21.88399508
B27: ='Contratos em Aberto DI'!A25 -> V26 | C27: =VLOOKUP(MID(B27,1,1),Legendas!$B$8:$D$19,2,FALSE) -> Outubro | D27: =WORKDAY(EOMONTH("15/"&VLOOKUP(MID(B27,1,1),Legendas!$B$8:$D$19,3,FALSE)&"/"&"20"&RIGHT(B27,2),-1),1,Feriados!$A$2:$A$937) -> 2026-10-01 | E27: 64650.27177 | F27: =NETWORKDAYS('Curva de Juros Pré'!$B$1,D27,Feriados!$A$2:$A$937)-1 -> 991 | G27: =InterpolaPre(F27) -> 0.1173 | H27: =VLOOKUP(B27,'Contratos em Aberto DI'!$A$2:$C$40,2,FALSE) -> 52153 | I27: =VLOOKUP(B27,'Contratos em Aberto DI'!$A$2:$C$40,3,FALSE) -> -95 | J27: -22.74981201
B28: ='Contratos em Aberto DI'!A26 -> F27 | C28: =VLOOKUP(MID(B28,1,1),Legendas!$B$8:$D$19,2,FALSE) -> Janeiro | D28: =WORKDAY(EOMONTH("15/"&VLOOKUP(MID(B28,1,1),Legendas!$B$8:$D$19,3,FALSE)&"/"&"20"&RIGHT(B28,2),-1),1,Feriados!$A$2:$A$937) -> 2027-01-04 | E28: 62929.32666 | F28: =NETWORKDAYS('Curva de Juros Pré'!$B$1,D28,Feriados!$A$2:$A$937)-1 -> 1054 | G28: =InterpolaPre(F28) -> 0.1171 | H28: =VLOOKUP(B28,'Contratos em Aberto DI'!$A$2:$C$40,2,FALSE) -> 1043500 | I28: =VLOOKUP(B28,'Contratos em Aberto DI'!$A$2:$C$40,3,FALSE) -> -22377 | J28: -23.5559362
B29: ='Contratos em Aberto DI'!A27 -> J27 | C29: =VLOOKUP(MID(B29,1,1),Legendas!$B$8:$D$19,2,FALSE) -> Abril | D29: =WORKDAY(EOMONTH("15/"&VLOOKUP(MID(B29,1,1),Legendas!$B$8:$D$19,3,FALSE)&"/"&"20"&RIGHT(B29,2),-1),1,Feriados!$A$2:$A$937) -> 2027-04-01 | E29: 61267.58235 | F29: =NETWORKDAYS('Curva de Juros Pré'!$B$1,D29,Feriados!$A$2:$A$937)-1 -> 1114 | G29: =InterpolaPre(F29) -> 0.1172 | H29: =VLOOKUP(B29,'Contratos em Aberto DI'!$A$2:$C$40,2,FALSE) -> 25653 | I29: =VLOOKUP(B29,'Contratos em Aberto DI'!$A$2:$C$40,3,FALSE) -> 285 | J29: -24.23701403
B30: ='Contratos em Aberto DI'!A28 -> N27 | C30: =VLOOKUP(MID(B30,1,1),Legendas!$B$8:$D$19,2,FALSE) -> Julho | D30: =WORKDAY(EOMONTH("15/"&VLOOKUP(MID(B30,1,1),Legendas!$B$8:$D$19,3,FALSE)&"/"&"20"&RIGHT(B30,2),-1),1,Feriados!$A$2:$A$937) -> 2027-07-01 | E30: 59568.47141 | F30: =NETWORKDAYS('Curva de Juros Pré'!$B$1,D30,Feriados!$A$2:$A$937)-1 -> 1177 | G30: =InterpolaPre(F30) -> 0.1173 | H30: =VLOOKUP(B30,'Contratos em Aberto DI'!$A$2:$C$40,2,FALSE) -> 23590 | I30: =VLOOKUP(B30,'Contratos em Aberto DI'!$A$2:$C$40,3,FALSE) -> -205 | J30: -24.89501419
B31: ='Contratos em Aberto DI'!A29 -> V27 | C31: =VLOOKUP(MID(B31,1,1),Legendas!$B$8:$D$19,2,FALSE) -> Outubro | D31: =WORKDAY(EOMONTH("15/"&VLOOKUP(MID(B31,1,1),Legendas!$B$8:$D$19,3,FALSE)&"/"&"20"&RIGHT(B31,2),-1),1,Feriados!$A$2:$A$937) -> 2027-10-01 | E31: 57837.37758 | F31: =NETWORKDAYS('Curva de Juros Pré'!$B$1,D31,Feriados!$A$2:$A$937)-1 -> 1242 | G31: =InterpolaPre(F31) -> 0.1175 | H31: =VLOOKUP(B31,'Contratos em Aberto DI'!$A$2:$C$40,2,FALSE) -> 16805 | I31: =VLOOKUP(B31,'Contratos em Aberto DI'!$A$2:$C$40,3,FALSE) -> 50 | J31: -25.50157031
B32: ='Contratos em Aberto DI'!A30 -> F28 | C32: =VLOOKUP(MID(B32,1,1),Legendas!$B$8:$D$19,2,FALSE) -> Janeiro | D32: =WORKDAY(EOMONTH("15/"&VLOOKUP(MID(B32,1,1),Legendas!$B$8:$D$19,3,FALSE)&"/"&"20"&RIGHT(B32,2),-1),1,Feriados!$A$2:$A$937) -> 2028-01-03 | E32: 56201.02499 | F32: =NETWORKDAYS('Curva de Juros Pré'!$B$1,D32,Feriados!$A$2:$A$937)-1 -> 1305 | G32: =InterpolaPre(F32) -> 0.1177 | H32: =VLOOKUP(B32,'Contratos em Aberto DI'!$A$2:$C$40,2,FALSE) -> 94412 | I32: =VLOOKUP(B32,'Contratos em Aberto DI'!$A$2:$C$40,3,FALSE) -> -120 | J32: -26.03208345
B33: ='Contratos em Aberto DI'!A31 -> F29 | C33: =VLOOKUP(MID(B33,1,1),Legendas!$B$8:$D$19,2,FALSE) -> Janeiro | D33: =WORKDAY(EOMONTH("15/"&VLOOKUP(MID(B33,1,1),Legendas!$B$8:$D$19,3,FALSE)&"/"&"20"&RIGHT(B33,2),-1),1,Feriados!$A$2:$A$937) -> 2029-01-02 | E33: 50127.73381 | F33: =NETWORKDAYS('Curva de Juros Pré'!$B$1,D33,Feriados!$A$2:$A$937)-1 -> 1554 | G33: =InterpolaPre(F33) -> 0.1185 | H33: =VLOOKUP(B33,'Contratos em Aberto DI'!$A$2:$C$40,2,FALSE) -> 489507 | I33: =VLOOKUP(B33,'Contratos em Aberto DI'!$A$2:$C$40,3,FALSE) -> 1890 | J33: -27.62825358
B34: ='Contratos em Aberto DI'!A32 -> F30 | C34: =VLOOKUP(MID(B34,1,1),Legendas!$B$8:$D$19,2,FALSE) -> Janeiro | D34: =WORKDAY(EOMONTH("15/"&VLOOKUP(MID(B34,1,1),Legendas!$B$8:$D$19,3,FALSE)&"/"&"20"&RIGHT(B34,2),-1),1,Feriados!$A$2:$A$937) -> 2030-01-02 | E34: 44742.10745 | F34: =NETWORKDAYS('Curva de Juros Pré'!$B$1,D34,Feriados!$A$2:$A$937)-1 -> 1804 | G34: =InterpolaPre(F34) -> 0.1189 | H34: =VLOOKUP(B34,'Contratos em Aberto DI'!$A$2:$C$40,2,FALSE) -> 51130 | I34: =VLOOKUP(B34,'Contratos em Aberto DI'!$A$2:$C$40,3,FALSE) -> 15 | J34: -28.61559833
B35: ='Contratos em Aberto DI'!A33 -> F31 | C35: =VLOOKUP(MID(B35,1,1),Legendas!$B$8:$D$19,2,FALSE) -> Janeiro | D35: =WORKDAY(EOMONTH("15/"&VLOOKUP(MID(B35,1,1),Legendas!$B$8:$D$19,3,FALSE)&"/"&"20"&RIGHT(B35,2),-1),1,Feriados!$A$2:$A$937) -> 2031-01-02 | E35: 39824.2631 | F35: =NETWORKDAYS('Curva de Juros Pré'!$B$1,D35,Feriados!$A$2:$A$937)-1 -> 2057 | G35: =InterpolaPre(F35) -> 0.1194 | H35: =VLOOKUP(B35,'Contratos em Aberto DI'!$A$2:$C$40,2,FALSE) -> 330236 | I35: =VLOOKUP(B35,'Contratos em Aberto DI'!$A$2:$C$40,3,FALSE) -> 1189 | J35: -29.02809069
B36: ='Contratos em Aberto DI'!A34 -> F32 | C36: =VLOOKUP(MID(B36,1,1),Legendas!$B$8:$D$19,2,FALSE) -> Janeiro | D36: =WORKDAY(EOMONTH("15/"&VLOOKUP(MID(B36,1,1),Legendas!$B$8:$D$19,3,FALSE)&"/"&"20"&RIGHT(B36,2),-1),1,Feriados!$A$2:$A$937) -> 2032-01-02 | E36: 35531.40949 | F36: =NETWORKDAYS('Curva de Juros Pré'!$B$1,D36,Feriados!$A$2:$A$937)-1 -> 2310 | G36: =InterpolaPre(F36) -> 0.1195 | H36: =VLOOKUP(B36,'Contratos em Aberto DI'!$A$2:$C$40,2,FALSE) -> 20370 | I36: =VLOOKUP(B36,'Contratos em Aberto DI'!$A$2:$C$40,3,FALSE) -> 0 | J36: -29.08054872
B37: ='Contratos em Aberto DI'!A35 -> F33 | C37: =VLOOKUP(MID(B37,1,1),Legendas!$B$8:$D$19,2,FALSE) -> Janeiro | D37: =WORKDAY(EOMONTH("15/"&VLOOKUP(MID(B37,1,1),Legendas!$B$8:$D$19,3,FALSE)&"/"&"20"&RIGHT(B37,2),-1),1,Feriados!$A$2:$A$937) -> 2033-01-03 | E37: 31709.83292 | F37: =NETWORKDAYS('Curva de Juros Pré'!$B$1,D37,Feriados!$A$2:$A$937)-1 -> 2562 | G37: =InterpolaPre(F37) -> 0.1196 | H37: =VLOOKUP(B37,'Contratos em Aberto DI'!$A$2:$C$40,2,FALSE) -> 161994 | I37: =VLOOKUP(B37,'Contratos em Aberto DI'!$A$2:$C$40,3,FALSE) -> -205 | J37: -28.78015276
B38: ='Contratos em Aberto DI'!A36 -> F34 | C38: =VLOOKUP(MID(B38,1,1),Legendas!$B$8:$D$19,2,FALSE) -> Janeiro | D38: =WORKDAY(EOMONTH("15/"&VLOOKUP(MID(B38,1,1),Legendas!$B$8:$D$19,3,FALSE)&"/"&"20"&RIGHT(B38,2),-1),1,Feriados!$A$2:$A$937) -> 2034-01-02 | E38: 28250.55107 | F38: =NETWORKDAYS('Curva de Juros Pré'!$B$1,D38,Feriados!$A$2:$A$937)-1 -> 2813 | G38: =InterpolaPre(F38) -> 0.1199 | H38: =VLOOKUP(B38,'Contratos em Aberto DI'!$A$2:$C$40,2,FALSE) -> 1105 | I38: =VLOOKUP(B38,'Contratos em Aberto DI'!$A$2:$C$40,3,FALSE) -> 0 | J38: -28.14369177
B39: ='Contratos em Aberto DI'!A37 -> F35 | C39: =VLOOKUP(MID(B39,1,1),Legendas!$B$8:$D$19,2,FALSE) -> Janeiro | D39: =WORKDAY(EOMONTH("15/"&VLOOKUP(MID(B39,1,1),Legendas!$B$8:$D$19,3,FALSE)&"/"&"20"&RIGHT(B39,2),-1),1,Feriados!$A$2:$A$937) -> 2035-01-02 | E39: 25287.41129 | F39: =NETWORKDAYS('Curva de Juros Pré'!$B$1,D39,Feriados!$A$2:$A$937)-1 -> 3062 | G39: =InterpolaPre(F39) -> 0.1198 | H39: =VLOOKUP(B39,'Contratos em Aberto DI'!$A$2:$C$40,2,FALSE) -> 3190 | I39: =VLOOKUP(B39,'Contratos em Aberto DI'!$A$2:$C$40,3,FALSE) -> 0 | J39: -27.42291214
B40: ='Contratos em Aberto DI'!A38 -> F36 | C40: =VLOOKUP(MID(B40,1,1),Legendas!$B$8:$D$19,2,FALSE) -> Janeiro | D40: =WORKDAY(EOMONTH("15/"&VLOOKUP(MID(B40,1,1),Legendas!$B$8:$D$19,3,FALSE)&"/"&"20"&RIGHT(B40,2),-1),1,Feriados!$A$2:$A$937) -> 2036-01-02 | E40: 22602.3665 | F40: =NETWORKDAYS('Curva de Juros Pré'!$B$1,D40,Feriados!$A$2:$A$937)-1 -> 3312 | G40: =InterpolaPre(F40) -> 0.1198 | H40: =VLOOKUP(B40,'Contratos em Aberto DI'!$A$2:$C$40,2,FALSE) -> 19950 | I40: =VLOOKUP(B40,'Contratos em Aberto DI'!$A$2:$C$40,3,FALSE) -> 0 | J40: -26.51117773
B41: ='Contratos em Aberto DI'!A39 -> F37 | C41: =VLOOKUP(MID(B41,1,1),Legendas!$B$8:$D$19,2,FALSE) -> Janeiro | D41: =WORKDAY(EOMONTH("15/"&VLOOKUP(MID(B41,1,1),Legendas!$B$8:$D$19,3,FALSE)&"/"&"20"&RIGHT(B41,2),-1),1,Feriados!$A$2:$A$937) -> 2037-01-02 | E41: 20166.17102 | F41: =NETWORKDAYS('Curva de Juros Pré'!$B$1,D41,Feriados!$A$2:$A$937)-1 -> 3566 | G41: =InterpolaPre(F41) -> 0.1198 | H41: =VLOOKUP(B41,'Contratos em Aberto DI'!$A$2:$C$40,2,FALSE) -> 800 | I41: =VLOOKUP(B41,'Contratos em Aberto DI'!$A$2:$C$40,3,FALSE) -> 0 | J41: -25.46654473

Sheet Contratos em Aberto DI
D1: Site: | E1: https://www.b3.com.br/pt_br/market-data-e-indices/servicos-de-dados/market-data/consultas/mercado-de-derivativos/contratos-em-aberto/vencimento-serie/contratos-em-aberto-futuro/
A2: X22 | B2: 721057 | C2: -3770
A3: Z22 | B3: 447222 | C3: -1475
A4: F23 | B4: 5761509 | C4: 23135
A5: G23 | B5: 170475 | C5: 10770
A6: H23 | B6: 134242 | C6: 335
A7: J23 | B7: 1115201 | C7: -19860
A8: K23 | B8: 95402 | C8: 0
A9: M23 | B9: 49640 | C9: -40
A10: N23 | B10: 2497117 | C10: -6128
A11: Q23 | B11: 45660 | C11: 0
A12: U23 | B12: 44090 | C12: -20
A13: V23 | B13: 395875 | C13: -5710
A14: F24 | B14: 4766724 | C14: -36613
A15: J24 | B15: 835139 | C15: 4973
A16: N24 | B16: 934963 | C16: 5506
A17: V24 | B17: 385270 | C17: 525
A18: F25 | B18: 3239147 | C18: -25788
A19: J25 | B19: 90081 | C19: -30
A20: N25 | B20: 994265 | C20: -2810
A21: V25 | B21: 61492 | C21: -220
A22: F26 | B22: 1409237 | C22: 3024
A23: J26 | B23: 36370 | C23: -120
A24: N26 | B24: 111945 | C24: -570
A25: V26 | B25: 52153 | C25: -95
A26: F27 | B26: 1043500 | C26: -22377
A27: J27 | B27: 25653 | C27: 285
A28: N27 | B28: 23590 | C28: -205
A29: V27 | B29: 16805 | C29: 50
A30: F28 | B30: 94412 | C30: -120
A31: F29 | B31: 489507 | C31: 1890
A32: F30 | B32: 51130 | C32: 15
A33: F31 | B33: 330236 | C33: 1189
A34: F32 | B34: 20370 | C34: 0
A35: F33 | B35: 161994 | C35: -205
A36: F34 | B36: 1105 | C36: 0
A37: F35 | B37: 3190 | C37: 0
A38: F36 | B38: 19950 | C38: 0
A39: F37 | B39: 800 | C39: 0

Sheet Curva de Juros Pré
A1: Data | B1: 2022-10-24 | C1: https://www.b3.com.br/pt_br/market-data-e-indices/servicos-de-dados/market-data/consultas/mercado-de-derivativos/precos-referenciais/taxas-referenciais-bm-fbovespa/
A3: DC | B3: DU | C3: ETTJ Pré
A4: 1 | B4: =NETWORKDAYS($B$1,$B$1+A4,Feriados!$A$2:$A$937)-1 -> 1 | C4: 0.1365
A5: 4 | B5: =NETWORKDAYS($B$1,$B$1+A5,Feriados!$A$2:$A$937)-1 -> 4 | C5: 0.1365
A6: 7 | B6: =NETWORKDAYS($B$1,$B$1+A6,Feriados!$A$2:$A$937)-1 -> 5 | C6: 0.1365
A7: 8 | B7: =NETWORKDAYS($B$1,$B$1+A7,Feriados!$A$2:$A$937)-1 -> 6 | C7: 0.1365
A8: 14 | B8: =NETWORKDAYS($B$1,$B$1+A8,Feriados!$A$2:$A$937)-1 -> 9 | C8: 0.1366
A9: 21 | B9: =NETWORKDAYS($B$1,$B$1+A9,Feriados!$A$2:$A$937)-1 -> 14 | C9: 0.1367
A10: 23 | B10: =NETWORKDAYS($B$1,$B$1+A10,Feriados!$A$2:$A$937)-1 -> 15 | C10: 0.1367
A11: 25 | B11: =NETWORKDAYS($B$1,$B$1+A11,Feriados!$A$2:$A$937)-1 -> 17 | C11: 0.1367
A12: 30 | B12: =NETWORKDAYS($B$1,$B$1+A12,Feriados!$A$2:$A$937)-1 -> 20 | C12: 0.1367
A13: 35 | B13: =NETWORKDAYS($B$1,$B$1+A13,Feriados!$A$2:$A$937)-1 -> 23 | C13: 0.1367
A14: 36 | B14: =NETWORKDAYS($B$1,$B$1+A14,Feriados!$A$2:$A$937)-1 -> 24 | C14: 0.1367
A15: 37 | B15: =NETWORKDAYS($B$1,$B$1+A15,Feriados!$A$2:$A$937)-1 -> 25 | C15: 0.1367
A16: 38 | B16: =NETWORKDAYS($B$1,$B$1+A16,Feriados!$A$2:$A$937)-1 -> 26 | C16: 0.1367
A17: 46 | B17: =NETWORKDAYS($B$1,$B$1+A17,Feriados!$A$2:$A$937)-1 -> 32 | C17: 0.1368
A18: 51 | B18: =NETWORKDAYS($B$1,$B$1+A18,Feriados!$A$2:$A$937)-1 -> 35 | C18: 0.1368
A19: 52 | B19: =NETWORKDAYS($B$1,$B$1+A19,Feriados!$A$2:$A$937)-1 -> 36 | C19: 0.1368
A20: 53 | B20: =NETWORKDAYS($B$1,$B$1+A20,Feriados!$A$2:$A$937)-1 -> 37 | C20: 0.1368
A21: 58 | B21: =NETWORKDAYS($B$1,$B$1+A21,Feriados!$A$2:$A$937)-1 -> 40 | C21: 0.1368
A22: 60 | B22: =NETWORKDAYS($B$1,$B$1+A22,Feriados!$A$2:$A$937)-1 -> 42 | C22: 0.1368
A23: 65 | B23: =NETWORKDAYS($B$1,$B$1+A23,Feriados!$A$2:$A$937)-1 -> 45 | C23: 0.1369
A24: 66 | B24: =NETWORKDAYS($B$1,$B$1+A24,Feriados!$A$2:$A$937)-1 -> 46 | C24: 0.1369
A25: 70 | B25: =NETWORKDAYS($B$1,$B$1+A25,Feriados!$A$2:$A$937)-1 -> 48 | C25: 0.1369
A26: 84 | B26: =NETWORKDAYS($B$1,$B$1+A26,Feriados!$A$2:$A$937)-1 -> 58 | C26: 0.1369
A27: 86 | B27: =NETWORKDAYS($B$1,$B$1+A27,Feriados!$A$2:$A$937)-1 -> 60 | C27: 0.1369
A28: 91 | B28: =NETWORKDAYS($B$1,$B$1+A28,Feriados!$A$2:$A$937)-1 -> 63 | C28: 0.1369
A29: 99 | B29: =NETWORKDAYS($B$1,$B$1+A29,Feriados!$A$2:$A$937)-1 -> 69 | C29: 0.1369
A30: 100 | B30: =NETWORKDAYS($B$1,$B$1+A30,Feriados!$A$2:$A$937)-1 -> 70 | C30: 0.1369
A31: 114 | B31: =NETWORKDAYS($B$1,$B$1+A31,Feriados!$A$2:$A$937)-1 -> 80 | C31: 0.1369
A32: 115 | B32: =NETWORKDAYS($B$1,$B$1+A32,Feriados!$A$2:$A$937)-1 -> 81 | C32: 0.1369
A33: 121 | B33: =NETWORKDAYS($B$1,$B$1+A33,Feriados!$A$2:$A$937)-1 -> 83 | C33: 0.1369
A34: 126 | B34: =NETWORKDAYS($B$1,$B$1+A34,Feriados!$A$2:$A$937)-1 -> 86 | C34: 0.137
A35: 127 | B35: =NETWORKDAYS($B$1,$B$1+A35,Feriados!$A$2:$A$937)-1 -> 87 | C35: 0.137
A36: 128 | B36: =NETWORKDAYS($B$1,$B$1+A36,Feriados!$A$2:$A$937)-1 -> 88 | C36: 0.137
A37: 137 | B37: =NETWORKDAYS($B$1,$B$1+A37,Feriados!$A$2:$A$937)-1 -> 95 | C37: 0.137
A38: 142 | B38: =NETWORKDAYS($B$1,$B$1+A38,Feriados!$A$2:$A$937)-1 -> 98 | C38: 0.137
A39: 143 | B39: =NETWORKDAYS($B$1,$B$1+A39,Feriados!$A$2:$A$937)-1 -> 99 | C39: 0.137
A40: 144 | B40: =NETWORKDAYS($B$1,$B$1+A40,Feriados!$A$2:$A$937)-1 -> 100 | C40: 0.137
A41: 150 | B41: =NETWORKDAYS($B$1,$B$1+A41,Feriados!$A$2:$A$937)-1 -> 104 | C41: 0.137
A42: 158 | B42: =NETWORKDAYS($B$1,$B$1+A42,Feriados!$A$2:$A$937)-1 -> 110 | C42: 0.137
A43: 161 | B43: =NETWORKDAYS($B$1,$B$1+A43,Feriados!$A$2:$A$937)-1 -> 111 | C43: 0.137
A44: 170 | B44: =NETWORKDAYS($B$1,$B$1+A44,Feriados!$A$2:$A$937)-1 -> 117 | C44: 0.1369
A45: 175 | B45: =NETWORKDAYS($B$1,$B$1+A45,Feriados!$A$2:$A$937)-1 -> 120 | C45: 0.1369
A46: 182 | B46: =NETWORKDAYS($B$1,$B$1+A46,Feriados!$A$2:$A$937)-1 -> 124 | C46: 0.1368
A47: 185 | B47: =NETWORKDAYS($B$1,$B$1+A47,Feriados!$A$2:$A$937)-1 -> 127 | C47: 0.1368
A48: 186 | B48: =NETWORKDAYS($B$1,$B$1+A48,Feriados!$A$2:$A$937)-1 -> 128 | C48: 0.1368
A49: 190 | B49: =NETWORKDAYS($B$1,$B$1+A49,Feriados!$A$2:$A$937)-1 -> 129 | C49: 0.1368
A50: 203 | B50: =NETWORKDAYS($B$1,$B$1+A50,Feriados!$A$2:$A$937)-1 -> 138 | C50: 0.1366
A51: 210 | B51: =NETWORKDAYS($B$1,$B$1+A51,Feriados!$A$2:$A$937)-1 -> 143 | C51: 0.1364
A52: 211 | B52: =NETWORKDAYS($B$1,$B$1+A52,Feriados!$A$2:$A$937)-1 -> 144 | C52: 0.1364
A53: 219 | B53: =NETWORKDAYS($B$1,$B$1+A53,Feriados!$A$2:$A$937)-1 -> 150 | C53: 0.1363
A54: 220 | B54: =NETWORKDAYS($B$1,$B$1+A54,Feriados!$A$2:$A$937)-1 -> 151 | C54: 0.1363
A55: 233 | B55: =NETWORKDAYS($B$1,$B$1+A55,Feriados!$A$2:$A$937)-1 -> 159 | C55: 0.1359
A56: 234 | B56: =NETWORKDAYS($B$1,$B$1+A56,Feriados!$A$2:$A$937)-1 -> 160 | C56: 0.1359
A57: 235 | B57: =NETWORKDAYS($B$1,$B$1+A57,Feriados!$A$2:$A$937)-1 -> 161 | C57: 0.1358
A58: 240 | B58: =NETWORKDAYS($B$1,$B$1+A58,Feriados!$A$2:$A$937)-1 -> 164 | C58: 0.1357
A59: 248 | B59: =NETWORKDAYS($B$1,$B$1+A59,Feriados!$A$2:$A$937)-1 -> 170 | C59: 0.1354
A60: 249 | B60: =NETWORKDAYS($B$1,$B$1+A60,Feriados!$A$2:$A$937)-1 -> 171 | C60: 0.1354
A61: 252 | B61: =NETWORKDAYS($B$1,$B$1+A61,Feriados!$A$2:$A$937)-1 -> 172 | C61: 0.1354
A62: 261 | B62: =NETWORKDAYS($B$1,$B$1+A62,Feriados!$A$2:$A$937)-1 -> 179 | C62: 0.135
A63: 266 | B63: =NETWORKDAYS($B$1,$B$1+A63,Feriados!$A$2:$A$937)-1 -> 182 | C63: 0.1349
A64: 270 | B64: =NETWORKDAYS($B$1,$B$1+A64,Feriados!$A$2:$A$937)-1 -> 186 | C64: 0.1347
A65: 277 | B65: =NETWORKDAYS($B$1,$B$1+A65,Feriados!$A$2:$A$937)-1 -> 191 | C65: 0.1345
A66: 280 | B66: =NETWORKDAYS($B$1,$B$1+A66,Feriados!$A$2:$A$937)-1 -> 192 | C66: 0.1345
A67: 281 | B67: =NETWORKDAYS($B$1,$B$1+A67,Feriados!$A$2:$A$937)-1 -> 193 | C67: 0.1345
A68: 295 | B68: =NETWORKDAYS($B$1,$B$1+A68,Feriados!$A$2:$A$937)-1 -> 203 | C68: 0.134
A69: 296 | B69: =NETWORKDAYS($B$1,$B$1+A69,Feriados!$A$2:$A$937)-1 -> 204 | C69: 0.1339
A70: 301 | B70: =NETWORKDAYS($B$1,$B$1+A70,Feriados!$A$2:$A$937)-1 -> 207 | C70: 0.1338
A71: 310 | B71: =NETWORKDAYS($B$1,$B$1+A71,Feriados!$A$2:$A$937)-1 -> 214 | C71: 0.1335
A72: 312 | B72: =NETWORKDAYS($B$1,$B$1+A72,Feriados!$A$2:$A$937)-1 -> 216 | C72: 0.1334
A73: 326 | B73: =NETWORKDAYS($B$1,$B$1+A73,Feriados!$A$2:$A$937)-1 -> 225 | C73: 0.1329
A74: 330 | B74: =NETWORKDAYS($B$1,$B$1+A74,Feriados!$A$2:$A$937)-1 -> 227 | C74: 0.1328
A75: 332 | B75: =NETWORKDAYS($B$1,$B$1+A75,Feriados!$A$2:$A$937)-1 -> 229 | C75: 0.1327
A76: 336 | B76: =NETWORKDAYS($B$1,$B$1+A76,Feriados!$A$2:$A$937)-1 -> 231 | C76: 0.1326
A77: 343 | B77: =NETWORKDAYS($B$1,$B$1+A77,Feriados!$A$2:$A$937)-1 -> 236 | C77: 0.1324
A78: 357 | B78: =NETWORKDAYS($B$1,$B$1+A78,Feriados!$A$2:$A$937)-1 -> 245 | C78: 0.1318
A79: 359 | B79: =NETWORKDAYS($B$1,$B$1+A79,Feriados!$A$2:$A$937)-1 -> 247 | C79: 0.1316
A80: 360 | B80: =NETWORKDAYS($B$1,$B$1+A80,Feriados!$A$2:$A$937)-1 -> 248 | C80: 0.1315
A81: 372 | B81: =NETWORKDAYS($B$1,$B$1+A81,Feriados!$A$2:$A$937)-1 -> 256 | C81: 0.131
A82: 388 | B82: =NETWORKDAYS($B$1,$B$1+A82,Feriados!$A$2:$A$937)-1 -> 266 | C82: 0.1304
A83: 392 | B83: =NETWORKDAYS($B$1,$B$1+A83,Feriados!$A$2:$A$937)-1 -> 268 | C83: 0.1303
A84: 415 | B84: =NETWORKDAYS($B$1,$B$1+A84,Feriados!$A$2:$A$937)-1 -> 285 | C84: 0.1293
A85: 420 | B85: =NETWORKDAYS($B$1,$B$1+A85,Feriados!$A$2:$A$937)-1 -> 288 | C85: 0.1292
A86: 421 | B86: =NETWORKDAYS($B$1,$B$1+A86,Feriados!$A$2:$A$937)-1 -> 289 | C86: 0.1291
A87: 435 | B87: =NETWORKDAYS($B$1,$B$1+A87,Feriados!$A$2:$A$937)-1 -> 297 | C87: 0.1288
A88: 448 | B88: =NETWORKDAYS($B$1,$B$1+A88,Feriados!$A$2:$A$937)-1 -> 306 | C88: 0.1282
A89: 450 | B89: =NETWORKDAYS($B$1,$B$1+A89,Feriados!$A$2:$A$937)-1 -> 308 | C89: 0.1281
A90: 478 | B90: =NETWORKDAYS($B$1,$B$1+A90,Feriados!$A$2:$A$937)-1 -> 326 | C90: 0.127
A91: 479 | B91: =NETWORKDAYS($B$1,$B$1+A91,Feriados!$A$2:$A$937)-1 -> 327 | C91: 0.127
A92: 480 | B92: =NETWORKDAYS($B$1,$B$1+A92,Feriados!$A$2:$A$937)-1 -> 328 | C92: 0.1269
A93: 506 | B93: =NETWORKDAYS($B$1,$B$1+A93,Feriados!$A$2:$A$937)-1 -> 346 | C93: 0.126
A94: 511 | B94: =NETWORKDAYS($B$1,$B$1+A94,Feriados!$A$2:$A$937)-1 -> 349 | C94: 0.1259
A95: 513 | B95: =NETWORKDAYS($B$1,$B$1+A95,Feriados!$A$2:$A$937)-1 -> 351 | C95: 0.1258
A96: 525 | B96: =NETWORKDAYS($B$1,$B$1+A96,Feriados!$A$2:$A$937)-1 -> 358 | C96: 0.1255
A97: 539 | B97: =NETWORKDAYS($B$1,$B$1+A97,Feriados!$A$2:$A$937)-1 -> 368 | C97: 0.1249
A98: 540 | B98: =NETWORKDAYS($B$1,$B$1+A98,Feriados!$A$2:$A$937)-1 -> 369 | C98: 0.1248
A99: 541 | B99: =NETWORKDAYS($B$1,$B$1+A99,Feriados!$A$2:$A$937)-1 -> 370 | C99: 0.1247
A100: 553 | B100: =NETWORKDAYS($B$1,$B$1+A100,Feriados!$A$2:$A$937)-1 -> 378 | C100: 0.1243
A101: 569 | B101: =NETWORKDAYS($B$1,$B$1+A101,Feriados!$A$2:$A$937)-1 -> 389 | C101: 0.1237
A102: 570 | B102: =NETWORKDAYS($B$1,$B$1+A102,Feriados!$A$2:$A$937)-1 -> 390 | C102: 0.1237
A103: 576 | B103: =NETWORKDAYS($B$1,$B$1+A103,Feriados!$A$2:$A$937)-1 -> 394 | C103: 0.1235
A104: 597 | B104: =NETWORKDAYS($B$1,$B$1+A104,Feriados!$A$2:$A$937)-1 -> 408 | C104: 0.1228
A105: 602 | B105: =NETWORKDAYS($B$1,$B$1+A105,Feriados!$A$2:$A$937)-1 -> 411 | C105: 0.1227
A106: 616 | B106: =NETWORKDAYS($B$1,$B$1+A106,Feriados!$A$2:$A$937)-1 -> 421 | C106: 0.1222
A107: 630 | B107: =NETWORKDAYS($B$1,$B$1+A107,Feriados!$A$2:$A$937)-1 -> 431 | C107: 0.1218
A108: 660 | B108: =NETWORKDAYS($B$1,$B$1+A108,Feriados!$A$2:$A$937)-1 -> 453 | C108: 0.1209
A109: 661 | B109: =NETWORKDAYS($B$1,$B$1+A109,Feriados!$A$2:$A$937)-1 -> 454 | C109: 0.1209
A110: 690 | B110: =NETWORKDAYS($B$1,$B$1+A110,Feriados!$A$2:$A$937)-1 -> 475 | C110: 0.1201
A111: 708 | B111: =NETWORKDAYS($B$1,$B$1+A111,Feriados!$A$2:$A$937)-1 -> 487 | C111: 0.1198
A112: 717 | B112: =NETWORKDAYS($B$1,$B$1+A112,Feriados!$A$2:$A$937)-1 -> 494 | C112: 0.1196
A113: 721 | B113: =NETWORKDAYS($B$1,$B$1+A113,Feriados!$A$2:$A$937)-1 -> 496 | C113: 0.1195
A114: 723 | B114: =NETWORKDAYS($B$1,$B$1+A114,Feriados!$A$2:$A$937)-1 -> 498 | C114: 0.1195
A115: 750 | B115: =NETWORKDAYS($B$1,$B$1+A115,Feriados!$A$2:$A$937)-1 -> 517 | C115: 0.119
A116: 756 | B116: =NETWORKDAYS($B$1,$B$1+A116,Feriados!$A$2:$A$937)-1 -> 520 | C116: 0.1189
A117: 780 | B117: =NETWORKDAYS($B$1,$B$1+A117,Feriados!$A$2:$A$937)-1 -> 538 | C117: 0.1185
A118: 801 | B118: =NETWORKDAYS($B$1,$B$1+A118,Feriados!$A$2:$A$937)-1 -> 551 | C118: 0.1182
A119: 812 | B119: =NETWORKDAYS($B$1,$B$1+A119,Feriados!$A$2:$A$937)-1 -> 558 | C119: 0.1181
A120: 840 | B120: =NETWORKDAYS($B$1,$B$1+A120,Feriados!$A$2:$A$937)-1 -> 578 | C120: 0.1178
A121: 847 | B121: =NETWORKDAYS($B$1,$B$1+A121,Feriados!$A$2:$A$937)-1 -> 583 | C121: 0.1177
A122: 870 | B122: =NETWORKDAYS($B$1,$B$1+A122,Feriados!$A$2:$A$937)-1 -> 598 | C122: 0.1175
A123: 890 | B123: =NETWORKDAYS($B$1,$B$1+A123,Feriados!$A$2:$A$937)-1 -> 612 | C123: 0.1173
A124: 900 | B124: =NETWORKDAYS($B$1,$B$1+A124,Feriados!$A$2:$A$937)-1 -> 620 | C124: 0.1172
A125: 921 | B125: =NETWORKDAYS($B$1,$B$1+A125,Feriados!$A$2:$A$937)-1 -> 632 | C125: 0.1171
A126: 931 | B126: =NETWORKDAYS($B$1,$B$1+A126,Feriados!$A$2:$A$937)-1 -> 638 | C126: 0.1171
A127: 934 | B127: =NETWORKDAYS($B$1,$B$1+A127,Feriados!$A$2:$A$937)-1 -> 641 | C127: 0.1171
A128: 960 | B128: =NETWORKDAYS($B$1,$B$1+A128,Feriados!$A$2:$A$937)-1 -> 659 | C128: 0.117
A129: 981 | B129: =NETWORKDAYS($B$1,$B$1+A129,Feriados!$A$2:$A$937)-1 -> 673 | C129: 0.1169
A130: 990 | B130: =NETWORKDAYS($B$1,$B$1+A130,Feriados!$A$2:$A$937)-1 -> 680 | C130: 0.1169
A131: 1022 | B131: =NETWORKDAYS($B$1,$B$1+A131,Feriados!$A$2:$A$937)-1 -> 702 | C131: 0.117
A132: 1026 | B132: =NETWORKDAYS($B$1,$B$1+A132,Feriados!$A$2:$A$937)-1 -> 706 | C132: 0.1171
A133: 1050 | B133: =NETWORKDAYS($B$1,$B$1+A133,Feriados!$A$2:$A$937)-1 -> 722 | C133: 0.1171
A134: 1073 | B134: =NETWORKDAYS($B$1,$B$1+A134,Feriados!$A$2:$A$937)-1 -> 739 | C134: 0.1172
A135: 1080 | B135: =NETWORKDAYS($B$1,$B$1+A135,Feriados!$A$2:$A$937)-1 -> 744 | C135: 0.1172
A136: 1110 | B136: =NETWORKDAYS($B$1,$B$1+A136,Feriados!$A$2:$A$937)-1 -> 766 | C136: 0.1171
A137: 1120 | B137: =NETWORKDAYS($B$1,$B$1+A137,Feriados!$A$2:$A$937)-1 -> 772 | C137: 0.117
A138: 1141 | B138: =NETWORKDAYS($B$1,$B$1+A138,Feriados!$A$2:$A$937)-1 -> 787 | C138: 0.117
A139: 1166 | B139: =NETWORKDAYS($B$1,$B$1+A139,Feriados!$A$2:$A$937)-1 -> 804 | C139: 0.1169
A140: 1170 | B140: =NETWORKDAYS($B$1,$B$1+A140,Feriados!$A$2:$A$937)-1 -> 806 | C140: 0.1169
A141: 1200 | B141: =NETWORKDAYS($B$1,$B$1+A141,Feriados!$A$2:$A$937)-1 -> 828 | C141: 0.117
A142: 1213 | B142: =NETWORKDAYS($B$1,$B$1+A142,Feriados!$A$2:$A$937)-1 -> 835 | C142: 0.1171
A143: 1255 | B143: =NETWORKDAYS($B$1,$B$1+A143,Feriados!$A$2:$A$937)-1 -> 865 | C143: 0.1172
A144: 1299 | B144: =NETWORKDAYS($B$1,$B$1+A144,Feriados!$A$2:$A$937)-1 -> 894 | C144: 0.1172
A145: 1346 | B145: =NETWORKDAYS($B$1,$B$1+A145,Feriados!$A$2:$A$937)-1 -> 926 | C145: 0.1172
A146: 1393 | B146: =NETWORKDAYS($B$1,$B$1+A146,Feriados!$A$2:$A$937)-1 -> 959 | C146: 0.1172
A147: 1438 | B147: =NETWORKDAYS($B$1,$B$1+A147,Feriados!$A$2:$A$937)-1 -> 991 | C147: 0.1173
A148: 1442 | B148: =NETWORKDAYS($B$1,$B$1+A148,Feriados!$A$2:$A$937)-1 -> 993 | C148: 0.1173
A149: 1484 | B149: =NETWORKDAYS($B$1,$B$1+A149,Feriados!$A$2:$A$937)-1 -> 1021 | C149: 0.1172
A150: 1533 | B150: =NETWORKDAYS($B$1,$B$1+A150,Feriados!$A$2:$A$937)-1 -> 1054 | C150: 0.1171
A151: 1575 | B151: =NETWORKDAYS($B$1,$B$1+A151,Feriados!$A$2:$A$937)-1 -> 1082 | C151: 0.1172
A152: 1620 | B152: =NETWORKDAYS($B$1,$B$1+A152,Feriados!$A$2:$A$937)-1 -> 1114 | C152: 0.1172
A153: 1666 | B153: =NETWORKDAYS($B$1,$B$1+A153,Feriados!$A$2:$A$937)-1 -> 1145 | C153: 0.1173
A154: 1711 | B154: =NETWORKDAYS($B$1,$B$1+A154,Feriados!$A$2:$A$937)-1 -> 1177 | C154: 0.1173
A155: 1757 | B155: =NETWORKDAYS($B$1,$B$1+A155,Feriados!$A$2:$A$937)-1 -> 1209 | C155: 0.1174
A156: 1800 | B156: =NETWORKDAYS($B$1,$B$1+A156,Feriados!$A$2:$A$937)-1 -> 1239 | C156: 0.1175
A157: 1803 | B157: =NETWORKDAYS($B$1,$B$1+A157,Feriados!$A$2:$A$937)-1 -> 1242 | C157: 0.1175
A158: 1849 | B158: =NETWORKDAYS($B$1,$B$1+A158,Feriados!$A$2:$A$937)-1 -> 1271 | C158: 0.1176
A159: 1897 | B159: =NETWORKDAYS($B$1,$B$1+A159,Feriados!$A$2:$A$937)-1 -> 1305 | C159: 0.1177
A160: 1940 | B160: =NETWORKDAYS($B$1,$B$1+A160,Feriados!$A$2:$A$937)-1 -> 1336 | C160: 0.1178
A161: 2030 | B161: =NETWORKDAYS($B$1,$B$1+A161,Feriados!$A$2:$A$937)-1 -> 1395 | C161: 0.118
A162: 2079 | B162: =NETWORKDAYS($B$1,$B$1+A162,Feriados!$A$2:$A$937)-1 -> 1429 | C162: 0.1181
A163: 2122 | B163: =NETWORKDAYS($B$1,$B$1+A163,Feriados!$A$2:$A$937)-1 -> 1460 | C163: 0.1182
A164: 2160 | B164: =NETWORKDAYS($B$1,$B$1+A164,Feriados!$A$2:$A$937)-1 -> 1487 | C164: 0.1183
A165: 2215 | B165: =NETWORKDAYS($B$1,$B$1+A165,Feriados!$A$2:$A$937)-1 -> 1523 | C165: 0.1184
A166: 2262 | B166: =NETWORKDAYS($B$1,$B$1+A166,Feriados!$A$2:$A$937)-1 -> 1554 | C166: 0.1185
A167: 2306 | B167: =NETWORKDAYS($B$1,$B$1+A167,Feriados!$A$2:$A$937)-1 -> 1584 | C167: 0.1186
A168: 2395 | B168: =NETWORKDAYS($B$1,$B$1+A168,Feriados!$A$2:$A$937)-1 -> 1645 | C168: 0.1186
A169: 2443 | B169: =NETWORKDAYS($B$1,$B$1+A169,Feriados!$A$2:$A$937)-1 -> 1678 | C169: 0.1187
A170: 2473 | B170: =NETWORKDAYS($B$1,$B$1+A170,Feriados!$A$2:$A$937)-1 -> 1700 | C170: 0.1187
A171: 2487 | B171: =NETWORKDAYS($B$1,$B$1+A171,Feriados!$A$2:$A$937)-1 -> 1710 | C171: 0.1187
A172: 2520 | B172: =NETWORKDAYS($B$1,$B$1+A172,Feriados!$A$2:$A$937)-1 -> 1732 | C172: 0.1188
A173: 2580 | B173: =NETWORKDAYS($B$1,$B$1+A173,Feriados!$A$2:$A$937)-1 -> 1773 | C173: 0.1188
A174: 2627 | B174: =NETWORKDAYS($B$1,$B$1+A174,Feriados!$A$2:$A$937)-1 -> 1804 | C174: 0.1189
A175: 2671 | B175: =NETWORKDAYS($B$1,$B$1+A175,Feriados!$A$2:$A$937)-1 -> 1836 | C175: 0.1189
A176: 2716 | B176: =NETWORKDAYS($B$1,$B$1+A176,Feriados!$A$2:$A$937)-1 -> 1865 | C176: 0.119
A177: 2760 | B177: =NETWORKDAYS($B$1,$B$1+A177,Feriados!$A$2:$A$937)-1 -> 1895 | C177: 0.1191
A178: 2807 | B178: =NETWORKDAYS($B$1,$B$1+A178,Feriados!$A$2:$A$937)-1 -> 1927 | C178: 0.1191
A179: 2852 | B179: =NETWORKDAYS($B$1,$B$1+A179,Feriados!$A$2:$A$937)-1 -> 1960 | C179: 0.1192
A180: 2880 | B180: =NETWORKDAYS($B$1,$B$1+A180,Feriados!$A$2:$A$937)-1 -> 1980 | C180: 0.1193
A181: 2947 | B181: =NETWORKDAYS($B$1,$B$1+A181,Feriados!$A$2:$A$937)-1 -> 2026 | C181: 0.1193
A182: 2992 | B182: =NETWORKDAYS($B$1,$B$1+A182,Feriados!$A$2:$A$937)-1 -> 2057 | C182: 0.1194
A183: 3038 | B183: =NETWORKDAYS($B$1,$B$1+A183,Feriados!$A$2:$A$937)-1 -> 2089 | C183: 0.1194
A184: 3125 | B184: =NETWORKDAYS($B$1,$B$1+A184,Feriados!$A$2:$A$937)-1 -> 2147 | C184: 0.1194
A185: 3217 | B185: =NETWORKDAYS($B$1,$B$1+A185,Feriados!$A$2:$A$937)-1 -> 2212 | C185: 0.1195
A186: 3241 | B186: =NETWORKDAYS($B$1,$B$1+A186,Feriados!$A$2:$A$937)-1 -> 2228 | C186: 0.1195
A187: 3311 | B187: =NETWORKDAYS($B$1,$B$1+A187,Feriados!$A$2:$A$937)-1 -> 2278 | C187: 0.1195
A188: 3357 | B188: =NETWORKDAYS($B$1,$B$1+A188,Feriados!$A$2:$A$937)-1 -> 2310 | C188: 0.1195
A189: 3402 | B189: =NETWORKDAYS($B$1,$B$1+A189,Feriados!$A$2:$A$937)-1 -> 2339 | C189: 0.1195
A190: 3493 | B190: =NETWORKDAYS($B$1,$B$1+A190,Feriados!$A$2:$A$937)-1 -> 2402 | C190: 0.1195
A191: 3584 | B191: =NETWORKDAYS($B$1,$B$1+A191,Feriados!$A$2:$A$937)-1 -> 2466 | C191: 0.1196
A192: 3600 | B192: =NETWORKDAYS($B$1,$B$1+A192,Feriados!$A$2:$A$937)-1 -> 2478 | C192: 0.1196
A193: 3676 | B193: =NETWORKDAYS($B$1,$B$1+A193,Feriados!$A$2:$A$937)-1 -> 2528 | C193: 0.1196
A194: 3724 | B194: =NETWORKDAYS($B$1,$B$1+A194,Feriados!$A$2:$A$937)-1 -> 2562 | C194: 0.1196
A195: 3767 | B195: =NETWORKDAYS($B$1,$B$1+A195,Feriados!$A$2:$A$937)-1 -> 2593 | C195: 0.1196
A196: 3857 | B196: =NETWORKDAYS($B$1,$B$1+A196,Feriados!$A$2:$A$937)-1 -> 2653 | C196: 0.1197
A197: 3948 | B197: =NETWORKDAYS($B$1,$B$1+A197,Feriados!$A$2:$A$937)-1 -> 2717 | C197: 0.1198
A198: 3962 | B198: =NETWORKDAYS($B$1,$B$1+A198,Feriados!$A$2:$A$937)-1 -> 2727 | C198: 0.1198
A199: 4041 | B199: =NETWORKDAYS($B$1,$B$1+A199,Feriados!$A$2:$A$937)-1 -> 2780 | C199: 0.1198
A200: 4088 | B200: =NETWORKDAYS($B$1,$B$1+A200,Feriados!$A$2:$A$937)-1 -> 2813 | C200: 0.1199
A201: 4132 | B201: =NETWORKDAYS($B$1,$B$1+A201,Feriados!$A$2:$A$937)-1 -> 2845 | C201: 0.1198
... 69 more rows

Sheet ETTJ x Contratos em Aberto
L2: Min. Liquidez Desejada | N2: 0 | Q2: Vencimento | R2: Série | S2: Taxa | T2: Contratos | U2: DV01 | W2: 0
Q3: =Resumo!D4 -> 2022-11-01 | R3: =Resumo!B4 -> X22 | S3: =Resumo!G4 -> 0.1365 | T3: =IF(Resumo!H4>'ETTJ x Contratos em Aberto'!$N$2,Resumo!H4,NA()) -> 721057 | U3: =IF(Resumo!H4>'ETTJ x Contratos em Aberto'!$N$2,Resumo!J4,NA()) -> -0.2088519943 | W3: 500000
Q4: =Resumo!D5 -> 2022-12-01 | R4: =Resumo!B5 -> Z22 | S4: =Resumo!G5 -> 0.1367 | T4: =IF(Resumo!H5>'ETTJ x Contratos em Aberto'!$N$2,Resumo!H5,NA()) -> 447222 | U4: =IF(Resumo!H5>'ETTJ x Contratos em Aberto'!$N$2,Resumo!J5,NA()) -> -0.8957042485 | W4: 1000000
Q5: =Resumo!D6 -> 2023-01-02 | R5: =Resumo!B6 -> F23 | S5: =Resumo!G6 -> 0.1369 | T5: =IF(Resumo!H6>'ETTJ x Contratos em Aberto'!$N$2,Resumo!H6,NA()) -> 5761509 | U5: =IF(Resumo!H6>'ETTJ x Contratos em Aberto'!$N$2,Resumo!J6,NA()) -> -1.634865119 | W5: 1500000
Q6: =Resumo!D7 -> 2023-02-01 | R6: =Resumo!B7 -> G23 | S6: =Resumo!G7 -> 0.1369 | T6: =IF(Resumo!H7>'ETTJ x Contratos em Aberto'!$N$2,Resumo!H7,NA()) -> 170475 | U6: =IF(Resumo!H7>'ETTJ x Contratos em Aberto'!$N$2,Resumo!J7,NA()) -> -2.357612475 | W6: 2000000
Q7: =Resumo!D8 -> 2023-03-01 | R7: =Resumo!B8 -> H23 | S7: =Resumo!G8 -> 0.137 | T7: =IF(Resumo!H8>'ETTJ x Contratos em Aberto'!$N$2,Resumo!H8,NA()) -> 134242 | U7: =IF(Resumo!H8>'ETTJ x Contratos em Aberto'!$N$2,Resumo!J8,NA()) -> -2.936459341 | W7: 3000000
Q8: =Resumo!D9 -> 2023-04-03 | R8: =Resumo!B9 -> J23 | S8: =Resumo!G9 -> 0.137 | T8: =IF(Resumo!H9>'ETTJ x Contratos em Aberto'!$N$2,Resumo!H9,NA()) -> 1115201 | U8: =IF(Resumo!H9>'ETTJ x Contratos em Aberto'!$N$2,Resumo!J9,NA()) -> -3.660777275 | W8: 4000000
Q9: =Resumo!D10 -> 2023-05-02 | R9: =Resumo!B10 -> K23 | S9: =Resumo!G10 -> 0.1368 | T9: =IF(Resumo!H10>'ETTJ x Contratos em Aberto'!$N$2,Resumo!H10,NA()) -> 95402 | U9: =IF(Resumo!H10>'ETTJ x Contratos em Aberto'!$N$2,Resumo!J10,NA()) -> -4.216686252 | W9: 5000000
Q10: =Resumo!D11 -> 2023-06-01 | R10: =Resumo!B11 -> M23 | S10: =Resumo!G11 -> 0.1363 | T10: =IF(Resumo!H11>'ETTJ x Contratos em Aberto'!$N$2,Resumo!H11,NA()) -> 49640 | U10: =IF(Resumo!H11>'ETTJ x Contratos em Aberto'!$N$2,Resumo!J11,NA()) -> -4.884285911
Q11: =Resumo!D12 -> 2023-07-03 | R11: =Resumo!B12 -> N23 | S11: =Resumo!G12 -> 0.1354 | T11: =IF(Resumo!H12>'ETTJ x Contratos em Aberto'!$N$2,Resumo!H12,NA()) -> 2497117 | U11: =IF(Resumo!H12>'ETTJ x Contratos em Aberto'!$N$2,Resumo!J12,NA()) -> -5.511953345
Q12: =Resumo!D13 -> 2023-08-01 | R12: =Resumo!B13 -> Q23 | S12: =Resumo!G13 -> 0.1345 | T12: =IF(Resumo!H13>'ETTJ x Contratos em Aberto'!$N$2,Resumo!H13,NA()) -> 45660 | U12: =IF(Resumo!H13>'ETTJ x Contratos em Aberto'!$N$2,Resumo!J13,NA()) -> -6.128372882
Q13: =Resumo!D14 -> 2023-09-01 | R13: =Resumo!B14 -> U23 | S13: =Resumo!G14 -> 0.1334 | T13: =IF(Resumo!H14>'ETTJ x Contratos em Aberto'!$N$2,Resumo!H14,NA()) -> 44090 | U13: =IF(Resumo!H14>'ETTJ x Contratos em Aberto'!$N$2,Resumo!J14,NA()) -> -6.792352937
Q14: =Resumo!D15 -> 2023-10-02 | R14: =Resumo!B15 -> V23 | S14: =Resumo!G15 -> 0.1324 | T14: =IF(Resumo!H15>'ETTJ x Contratos em Aberto'!$N$2,Resumo!H15,NA()) -> 395875 | U14: =IF(Resumo!H15>'ETTJ x Contratos em Aberto'!$N$2,Resumo!J15,NA()) -> -7.36042973
Q15: =Resumo!D16 -> 2024-01-02 | R15: =Resumo!B16 -> F24 | S15: =Resumo!G16 -> 0.1288 | T15: =IF(Resumo!H16>'ETTJ x Contratos em Aberto'!$N$2,Resumo!H16,NA()) -> 4766724 | U15: =IF(Resumo!H16>'ETTJ x Contratos em Aberto'!$N$2,Resumo!J16,NA()) -> -9.050740368
Q16: =Resumo!D17 -> 2024-04-01 | R16: =Resumo!B17 -> J24 | S16: =Resumo!G17 -> 0.1255 | T16: =IF(Resumo!H17>'ETTJ x Contratos em Aberto'!$N$2,Resumo!H17,NA()) -> 835139 | U16: =IF(Resumo!H17>'ETTJ x Contratos em Aberto'!$N$2,Resumo!J17,NA()) -> -10.66957393
Q17: =Resumo!D18 -> 2024-07-01 | R17: =Resumo!B18 -> N24 | S17: =Resumo!G18 -> 0.1222 | T17: =IF(Resumo!H18>'ETTJ x Contratos em Aberto'!$N$2,Resumo!H18,NA()) -> 934963 | U17: =IF(Resumo!H18>'ETTJ x Contratos em Aberto'!$N$2,Resumo!J18,NA()) -> -12.2775153
Q18: =Resumo!D19 -> 2024-10-01 | R18: =Resumo!B19 -> V24 | S18: =Resumo!G19 -> 0.1198 | T18: =IF(Resumo!H19>'ETTJ x Contratos em Aberto'!$N$2,Resumo!H19,NA()) -> 385270 | U18: =IF(Resumo!H19>'ETTJ x Contratos em Aberto'!$N$2,Resumo!J19,NA()) -> -13.86644708
Q19: =Resumo!D20 -> 2025-01-02 | R19: =Resumo!B20 -> F25 | S19: =Resumo!G20 -> 0.1182 | T19: =IF(Resumo!H20>'ETTJ x Contratos em Aberto'!$N$2,Resumo!H20,NA()) -> 3239147 | U19: =IF(Resumo!H20>'ETTJ x Contratos em Aberto'!$N$2,Resumo!J20,NA()) -> -15.31374631
Q20: =Resumo!D21 -> 2025-04-01 | R20: =Resumo!B21 -> J25 | S20: =Resumo!G21 -> 0.1173 | T20: =IF(Resumo!H21>'ETTJ x Contratos em Aberto'!$N$2,Resumo!H21,NA()) -> 90081 | U20: =IF(Resumo!H21>'ETTJ x Contratos em Aberto'!$N$2,Resumo!J21,NA()) -> -16.6008626
Q21: =Resumo!D22 -> 2025-07-01 | R21: =Resumo!B22 -> N25 | S21: =Resumo!G22 -> 0.1169 | T21: =IF(Resumo!H22>'ETTJ x Contratos em Aberto'!$N$2,Resumo!H22,NA()) -> 994265 | U21: =IF(Resumo!H22>'ETTJ x Contratos em Aberto'!$N$2,Resumo!J22,NA()) -> -17.79509169
Q22: =Resumo!D23 -> 2025-10-01 | R22: =Resumo!B23 -> V25 | S22: =Resumo!G23 -> 0.1172 | T22: =IF(Resumo!H23>'ETTJ x Contratos em Aberto'!$N$2,Resumo!H23,NA()) -> 61492 | U22: =IF(Resumo!H23>'ETTJ x Contratos em Aberto'!$N$2,Resumo!J23,NA()) -> -18.96228571
Q23: =Resumo!D24 -> 2026-01-02 | R23: =Resumo!B24 -> F26 | S23: =Resumo!G24 -> 0.1169 | T23: =IF(Resumo!H24>'ETTJ x Contratos em Aberto'!$N$2,Resumo!H24,NA()) -> 1409237 | U23: =IF(Resumo!H24>'ETTJ x Contratos em Aberto'!$N$2,Resumo!J24,NA()) -> -20.07110574
Q24: =Resumo!D25 -> 2026-04-01 | R24: =Resumo!B25 -> J26 | S24: =Resumo!G25 -> 0.1172 | T24: =IF(Resumo!H25>'ETTJ x Contratos em Aberto'!$N$2,Resumo!H25,NA()) -> 36370 | U24: =IF(Resumo!H25>'ETTJ x Contratos em Aberto'!$N$2,Resumo!J25,NA()) -> -20.99844688
Q25: =Resumo!D26 -> 2026-07-01 | R25: =Resumo!B26 -> N26 | S25: =Resumo!G26 -> 0.1172 | T25: =IF(Resumo!H26>'ETTJ x Contratos em Aberto'!$N$2,Resumo!H26,NA()) -> 111945 | U25: =IF(Resumo!H26>'ETTJ x Contratos em Aberto'!$N$2,Resumo!J26,NA()) -> -21.88399508
Q26: =Resumo!D27 -> 2026-10-01 | R26: =Resumo!B27 -> V26 | S26: =Resumo!G27 -> 0.1173 | T26: =IF(Resumo!H27>'ETTJ x Contratos em Aberto'!$N$2,Resumo!H27,NA()) -> 52153 | U26: =IF(Resumo!H27>'ETTJ x Contratos em Aberto'!$N$2,Resumo!J27,NA()) -> -22.74981201
Q27: =Resumo!D28 -> 2027-01-04 | R27: =Resumo!B28 -> F27 | S27: =Resumo!G28 -> 0.1171 | T27: =IF(Resumo!H28>'ETTJ x Contratos em Aberto'!$N$2,Resumo!H28,NA()) -> 1043500 | U27: =IF(Resumo!H28>'ETTJ x Contratos em Aberto'!$N$2,Resumo!J28,NA()) -> -23.5559362
Q28: =Resumo!D29 -> 2027-04-01 | R28: =Resumo!B29 -> J27 | S28: =Resumo!G29 -> 0.1172 | T28: =IF(Resumo!H29>'ETTJ x Contratos em Aberto'!$N$2,Resumo!H29,NA()) -> 25653 | U28: =IF(Resumo!H29>'ETTJ x Contratos em Aberto'!$N$2,Resumo!J29,NA()) -> -24.23701403
Q29: =Resumo!D30 -> 2027-07-01 | R29: =Resumo!B30 -> N27 | S29: =Resumo!G30 -> 0.1173 | T29: =IF(Resumo!H30>'ETTJ x Contratos em Aberto'!$N$2,Resumo!H30,NA()) -> 23590 | U29: =IF(Resumo!H30>'ETTJ x Contratos em Aberto'!$N$2,Resumo!J30,NA()) -> -24.89501419
Q30: =Resumo!D31 -> 2027-10-01 | R30: =Resumo!B31 -> V27 | S30: =Resumo!G31 -> 0.1175 | T30: =IF(Resumo!H31>'ETTJ x Contratos em Aberto'!$N$2,Resumo!H31,NA()) -> 16805 | U30: =IF(Resumo!H31>'ETTJ x Contratos em Aberto'!$N$2,Resumo!J31,NA()) -> -25.50157031
Q31: =Resumo!D32 -> 2028-01-03 | R31: =Resumo!B32 -> F28 | S31: =Resumo!G32 -> 0.1177 | T31: =IF(Resumo!H32>'ETTJ x Contratos em Aberto'!$N$2,Resumo!H32,NA()) -> 94412 | U31: =IF(Resumo!H32>'ETTJ x Contratos em Aberto'!$N$2,Resumo!J32,NA()) -> -26.03208345
Q32: =Resumo!D33 -> 2029-01-02 | R32: =Resumo!B33 -> F29 | S32: =Resumo!G33 -> 0.1185 | T32: =IF(Resumo!H33>'ETTJ x Contratos em Aberto'!$N$2,Resumo!H33,NA()) -> 489507 | U32: =IF(Resumo!H33>'ETTJ x Contratos em Aberto'!$N$2,Resumo!J33,NA()) -> -27.62825358
Q33: =Resumo!D34 -> 2030-01-02 | R33: =Resumo!B34 -> F30 | S33: =Resumo!G34 -> 0.1189 | T33: =IF(Resumo!H34>'ETTJ x Contratos em Aberto'!$N$2,Resumo!H34,NA()) -> 51130 | U33: =IF(Resumo!H34>'ETTJ x Contratos em Aberto'!$N$2,Resumo!J34,NA()) -> -28.61559833
Q34: =Resumo!D35 -> 2031-01-02 | R34: =Resumo!B35 -> F31 | S34: =Resumo!G35 -> 0.1194 | T34: =IF(Resumo!H35>'ETTJ x Contratos em Aberto'!$N$2,Resumo!H35,NA()) -> 330236 | U34: =IF(Resumo!H35>'ETTJ x Contratos em Aberto'!$N$2,Resumo!J35,NA()) -> -29.02809069
Q35: =Resumo!D36 -> 2032-01-02 | R35: =Resumo!B36 -> F32 | S35: =Resumo!G36 -> 0.1195 | T35: =IF(Resumo!H36>'ETTJ x Contratos em Aberto'!$N$2,Resumo!H36,NA()) -> 20370 | U35: =IF(Resumo!H36>'ETTJ x Contratos em Aberto'!$N$2,Resumo!J36,NA()) -> -29.08054872
Q36: =Resumo!D37 -> 2033-01-03 | R36: =Resumo!B37 -> F33 | S36: =Resumo!G37 -> 0.1196 | T36: =IF(Resumo!H37>'ETTJ x Contratos em Aberto'!$N$2,Resumo!H37,NA()) -> 161994 | U36: =IF(Resumo!H37>'ETTJ x Contratos em Aberto'!$N$2,Resumo!J37,NA()) -> -28.78015276
Q37: =Resumo!D38 -> 2034-01-02 | R37: =Resumo!B38 -> F34 | S37: =Resumo!G38 -> 0.1199 | T37: =IF(Resumo!H38>'ETTJ x Contratos em Aberto'!$N$2,Resumo!H38,NA()) -> 1105 | U37: =IF(Resumo!H38>'ETTJ x Contratos em Aberto'!$N$2,Resumo!J38,NA()) -> -28.14369177
Q38: =Resumo!D39 -> 2035-01-02 | R38: =Resumo!B39 -> F35 | S38: =Resumo!G39 -> 0.1198 | T38: =IF(Resumo!H39>'ETTJ x Contratos em Aberto'!$N$2,Resumo!H39,NA()) -> 3190 | U38: =IF(Resumo!H39>'ETTJ x Contratos em Aberto'!$N$2,Resumo!J39,NA()) -> -27.42291214
Q39: =Resumo!D40 -> 2036-01-02 | R39: =Resumo!B40 -> F36 | S39: =Resumo!G40 -> 0.1198 | T39: =IF(Resumo!H40>'ETTJ x Contratos em Aberto'!$N$2,Resumo!H40,NA()) -> 19950 | U39: =IF(Resumo!H40>'ETTJ x Contratos em Aberto'!$N$2,Resumo!J40,NA()) -> -26.51117773
Q40: =Resumo!D41 -> 2037-01-02 | R40: =Resumo!B41 -> F37 | S40: =Resumo!G41 -> 0.1198 | T40: =IF(Resumo!H41>'ETTJ x Contratos em Aberto'!$N$2,Resumo!H41,NA()) -> 800 | U40: =IF(Resumo!H41>'ETTJ x Contratos em Aberto'!$N$2,Resumo!J41,NA()) -> -25.46654473

Sheet Reuniões do COPOM
B1: Data Atual | C1: ='Curva de Juros Pré'!B1 -> 2022-10-24
B2: Taxa DI | C2: 0.1365
B4: Reuniões | C4: Dias | D4: ETTJ B3
B5: COPOM | C5: Úteis | D5: Spot | E5: Forward | F5: D | G5: Movimento*
B6: 2022-10-26 | C6: =NETWORKDAYS($C$1,B6,Feriados!$A$2:$A$937)-1 -> 2 | D6: =InterpolaPre(C6) -> 0.1365 | E6: =Forward($C$1,C1,B6,C2,D6,Feriados!$A$2:$A$937) -> 0.1365 | F6: =E6-C2 -> 1.515454429e-14 | G6: =IF(F6>$C$22,"Alta",IF(F6<-$C$22,"Corte","Manutenção")) -> Manutenção
B7: 2022-12-07 | C7: =NETWORKDAYS($C$1,B7,Feriados!$A$2:$A$937)-1 -> 30 | D7: =InterpolaPre(C7) -> 0.1367711102 | E7: =Forward($C$1,B6,B7,D6,D7,Feriados!$A$2:$A$937) -> 0.1368001616 | F7: =E7-E6 -> 0.0003001615653 | G7: =IF(F7>$C$22,"Alta",IF(F7<-$C$22,"Corte","Manutenção")) -> Manutenção
B8: 2023-02-01 | C8: =NETWORKDAYS($C$1,B8,Feriados!$A$2:$A$937)-1 -> 70 | D8: =InterpolaPre(C8) -> 0.1369 | E8: =Forward($C$1,B7,B8,D7,D8,Feriados!$A$2:$A$937) -> 0.1369998996 | F8: =E8-E7 -> 0.0001997380754 | G8: =IF(F8>$C$22,"Alta",IF(F8<-$C$22,"Corte","Manutenção")) -> Manutenção
B9: 2023-03-22 | C9: =NETWORKDAYS($C$1,B9,Feriados!$A$2:$A$937)-1 -> 103 | D9: =InterpolaPre(C9) -> 0.137 | E9: =Forward($C$1,B8,B9,D8,D9,Feriados!$A$2:$A$937) -> 0.1372151813 | F9: 0.0002152816958 | G9: =IF(F9>$C$22,"Alta",IF(F9<-$C$22,"Corte","Manutenção")) -> Manutenção
B10: 2023-05-03 | C10: =NETWORKDAYS($C$1,B10,Feriados!$A$2:$A$937)-1 -> 130 | D10: =InterpolaPre(C10) -> 0.1367764084 | E10: =Forward($C$1,B9,B10,D9,D10,Feriados!$A$2:$A$937) -> 0.1359155776 | F10: -0.001299603743 | G10: =IF(F10>$C$22,"Alta",IF(F10<-$C$22,"Corte","Manutenção")) -> Manutenção
B11: 2023-06-21 | C11: =NETWORKDAYS($C$1,B11,Feriados!$A$2:$A$937)-1 -> 164 | D11: =InterpolaPre(C11) -> 0.1357 | E11: =Forward($C$1,B10,B11,D10,D11,Feriados!$A$2:$A$937) -> 0.1315621821 | F11: -0.004353395535 | G11: =IF(F11>$C$22,"Alta",IF(F11<-$C$22,"Corte","Manutenção")) -> Corte
B12: 2023-08-02 | C12: =NETWORKDAYS($C$1,B12,Feriados!$A$2:$A$937)-1 -> 194 | D12: =InterpolaPre(C12) -> 0.1344476701 | E12: =Forward($C$1,B11,B12,D11,D12,Feriados!$A$2:$A$937) -> 0.127584499 | F12: -0.003977683035 | G12: =IF(F12>$C$22,"Alta",IF(F12<-$C$22,"Corte","Manutenção")) -> Corte
B13: 2023-09-20 | C13: =NETWORKDAYS($C$1,B13,Feriados!$A$2:$A$937)-1 -> 228 | D13: =InterpolaPre(C13) -> 0.1327497796 | E13: =Forward($C$1,B12,B13,D12,D13,Feriados!$A$2:$A$937) -> 0.1230608439 | F13: -0.00452365512 | G13: =IF(F13>$C$22,"Alta",IF(F13<-$C$22,"Corte","Manutenção")) -> Corte
B14: 2023-11-01 | C14: =NETWORKDAYS($C$1,B14,Feriados!$A$2:$A$937)-1 -> 257 | D14: =InterpolaPre(C14) -> 0.1309378841 | E14: =Forward($C$1,B13,B14,D13,D14,Feriados!$A$2:$A$937) -> 0.116731587 | F14: -0.00632925692 | G14: =IF(F14>$C$22,"Alta",IF(F14<-$C$22,"Corte","Manutenção")) -> Corte
B15: 2023-12-13 | C15: =NETWORKDAYS($C$1,B15,Feriados!$A$2:$A$937)-1 -> 285 | D15: =InterpolaPre(C15) -> 0.1293 | E15: =Forward($C$1,B14,B15,D14,D15,Feriados!$A$2:$A$937) -> 0.1143192533 | F15: -0.002412333694 | G15: =IF(F15>$C$22,"Alta",IF(F15<-$C$22,"Corte","Manutenção")) -> Corte
B16: 2025-01-02 | C16: =NETWORKDAYS($C$1,B16,Feriados!$A$2:$A$937)-1 -> 551 | D16: =InterpolaPre(C16) -> 0.1182 | E16: =Forward($C$1,B15,B16,D15,D16,Feriados!$A$2:$A$937) -> 0.1063870997 | F16: -0.007932153584 | G16: =IF(F16>$C$22,"Alta",IF(F16<-$C$22,"Corte","Manutenção")) -> Corte
B17: 2026-01-02 | C17: =NETWORKDAYS($C$1,B17,Feriados!$A$2:$A$937)-1 -> 804 | D17: =InterpolaPre(C17) -> 0.1169 | E17: =Forward($C$1,B16,B17,D16,D17,Feriados!$A$2:$A$937) -> 0.11406888 | F17: 0.00768178029 | G17: =IF(F17>$C$22,"Alta",IF(F17<-$C$22,"Corte","Manutenção")) -> Alta
B18: 2027-01-04 | C18: =NETWORKDAYS($C$1,B18,Feriados!$A$2:$A$937)-1 -> 1054 | D18: =InterpolaPre(C18) -> 0.1171 | E18: =Forward($C$1,B17,B18,D17,D18,Feriados!$A$2:$A$937) -> 0.1177442434 | F18: 0.00367536336 | G18: =IF(F18>$C$22,"Alta",IF(F18<-$C$22,"Corte","Manutenção")) -> Alta
B19: 2028-01-03 | C19: =NETWORKDAYS($C$1,B19,Feriados!$A$2:$A$937)-1 -> 1305 | D19: =InterpolaPre(C19) -> 0.1177 | E19: =Forward($C$1,B18,B19,D18,D19,Feriados!$A$2:$A$937) -> 0.1202254383 | F19: 0.002481194958 | G19: =IF(F19>$C$22,"Alta",IF(F19<-$C$22,"Corte","Manutenção")) -> Alta
C21: As datas de COPOM de 2024 em diante ainda não estão disponíveis.
B22: Precisão Método | C22: 0.002
B23: Separação entre erros de medida e prêmios por mal apreçamento, de liquidez e de inflação.
B24: *A variação reportada como hike da política monetária pode conter prêmios de risco.

Sheet Legendas
B7: Código | C7: Mês | D7: Mês Num
B8: F | C8: Janeiro | D8: 01
B9: G | C9: Fevereiro | D9: 02
B10: H | C10: Março | D10: 03
B11: J | C11: Abril | D11: 04
B12: K | C12: Maio | D12: 05
B13: M | C13: Junho | D13: 06
B14: N | C14: Julho | D14: 07
B15: Q | C15: Agosto | D15: 08
B16: U | C16: Setembro | D16: 09
B17: V | C17: Outubro | D17: 10
B18: X | C18: Novembro | D18: 11
B19: Z | C19: Dezembro | D19: 12

Sheet Feriados
A1: Data | B1: Dia da Semana | C1: Feriado
A2: 2001-01-01 | B2: segunda-feira | C2: Confraternização Universal
A3: 2001-02-26 | B3: segunda-feira | C3: Carnaval
A4: 2001-02-27 | B4: terça-feira | C4: Carnaval
A5: 2001-04-13 | B5: sexta-feira | C5: Paixão de Cristo
A6: 2001-04-21 | B6: sábado | C6: Tiradentes
A7: 2001-05-01 | B7: terça-feira | C7: Dia do Trabalho
A8: 2001-06-14 | B8: quinta-feira | C8: Corpus Christi
A9: 2001-09-07 | B9: sexta-feira | C9: Independência do Brasil
A10: 2001-10-12 | B10: sexta-feira | C10: Nossa Sr.a Aparecida - Padroeira do Brasil
A11: 2001-11-02 | B11: sexta-feira | C11: Finados
A12: 2001-11-15 | B12: quinta-feira | C12: Proclamação da República
A13: 2001-12-25 | B13: terça-feira | C13: Natal
A14: 2002-01-01 | B14: terça-feira | C14: Confraternização Universal
A15: 2002-02-11 | B15: segunda-feira | C15: Carnaval
A16: 2002-02-12 | B16: terça-feira | C16: Carnaval
A17: 2002-03-29 | B17: sexta-feira | C17: Paixão de Cristo
A18: 2002-04-21 | B18: domingo | C18: Tiradentes
A19: 2002-05-01 | B19: quarta-feira | C19: Dia do Trabalho
A20: 2002-05-30 | B20: quinta-feira | C20: Corpus Christi
A21: 2002-09-07 | B21: sábado | C21: Independência do Brasil
A22: 2002-10-12 | B22: sábado | C22: Nossa Sr.a Aparecida - Padroeira do Brasil
A23: 2002-11-02 | B23: sábado | C23: Finados
A24: 2002-11-15 | B24: sexta-feira | C24: Proclamação da República
A25: 2002-12-25 | B25: quarta-feira | C25: Natal
A26: 2003-01-01 | B26: quarta-feira | C26: Confraternização Universal
A27: 2003-03-03 | B27: segunda-feira | C27: Carnaval
A28: 2003-03-04 | B28: terça-feira | C28: Carnaval
A29: 2003-04-18 | B29: sexta-feira | C29: Paixão de Cristo
A30: 2003-04-21 | B30: segunda-feira | C30: Tiradentes
A31: 2003-05-01 | B31: quinta-feira | C31: Dia do Trabalho
A32: 2003-06-19 | B32: quinta-feira | C32: Corpus Christi
A33: 2003-09-07 | B33: domingo | C33: Independência do Brasil
A34: 2003-10-12 | B34: domingo | C34: Nossa Sr.a Aparecida - Padroeira do Brasil
A35: 2003-11-02 | B35: domingo | C35: Finados
A36: 2003-11-15 | B36: sábado | C36: Proclamação da República
A37: 2003-12-25 | B37: quinta-feira | C37: Natal
A38: 2004-01-01 | B38: quinta-feira | C38: Confraternização Universal
A39: 2004-02-23 | B39: segunda-feira | C39: Carnaval
A40: 2004-02-24 | B40: terça-feira | C40: Carnaval
A41: 2004-04-09 | B41: sexta-feira | C41: Paixão de Cristo
A42: 2004-04-21 | B42: quarta-feira | C42: Tiradentes
A43: 2004-05-01 | B43: sábado | C43: Dia do Trabalho
A44: 2004-06-10 | B44: quinta-feira | C44: Corpus Christi
A45: 2004-09-07 | B45: terça-feira | C45: Independência do Brasil
A46: 2004-10-12 | B46: terça-feira | C46: Nossa Sr.a Aparecida - Padroeira do Brasil
A47: 2004-11-02 | B47: terça-feira | C47: Finados
A48: 2004-11-15 | B48: segunda-feira | C48: Proclamação da República
A49: 2004-12-25 | B49: sábado | C49: Natal
A50: 2005-01-01 | B50: sábado | C50: Confraternização Universal
A51: 2005-02-07 | B51: segunda-feira | C51: Carnaval
A52: 2005-02-08 | B52: terça-feira | C52: Carnaval
A53: 2005-03-25 | B53: sexta-feira | C53: Paixão de Cristo
A54: 2005-04-21 | B54: quinta-feira | C54: Tiradentes
A55: 2005-05-01 | B55: domingo | C55: Dia do Trabalho
A56: 2005-05-26 | B56: quinta-feira | C56: Corpus Christi
A57: 2005-09-07 | B57: quarta-feira | C57: Independência do Brasil
A58: 2005-10-12 | B58: quarta-feira | C58: Nossa Sr.a Aparecida - Padroeira do Brasil
A59: 2005-11-02 | B59: quarta-feira | C59: Finados
A60: 2005-11-15 | B60: terça-feira | C60: Proclamação da República
A61: 2005-12-25 | B61: domingo | C61: Natal
A62: 2006-01-01 | B62: domingo | C62: Confraternização Universal
A63: 2006-02-27 | B63: segunda-feira | C63: Carnaval
A64: 2006-02-28 | B64: terça-feira | C64: Carnaval
A65: 2006-04-14 | B65: sexta-feira | C65: Paixão de Cristo
A66: 2006-04-21 | B66: sexta-feira | C66: Tiradentes
A67: 2006-05-01 | B67: segunda-feira | C67: Dia do Trabalho
A68: 2006-06-15 | B68: quinta-feira | C68: Corpus Christi
A69: 2006-09-07 | B69: quinta-feira | C69: Independência do Brasil
A70: 2006-10-12 | B70: quinta-feira | C70: Nossa Sr.a Aparecida - Padroeira do Brasil
A71: 2006-11-02 | B71: quinta-feira | C71: Finados
A72: 2006-11-15 | B72: quarta-feira | C72: Proclamação da República
A73: 2006-12-25 | B73: segunda-feira | C73: Natal
A74: 2007-01-01 | B74: segunda-feira | C74: Confraternização Universal
A75: 2007-02-19 | B75: segunda-feira | C75: Carnaval
A76: 2007-02-20 | B76: terça-feira | C76: Carnaval
A77: 2007-04-06 | B77: sexta-feira | C77: Paixão de Cristo
A78: 2007-04-21 | B78: sábado | C78: Tiradentes
A79: 2007-05-01 | B79: terça-feira | C79: Dia do Trabalho
A80: 2007-06-07 | B80: quinta-feira | C80: Corpus Christi
A81: 2007-09-07 | B81: sexta-feira | C81: Independência do Brasil
A82: 2007-10-12 | B82: sexta-feira | C82: Nossa Sr.a Aparecida - Padroeira do Brasil
A83: 2007-11-02 | B83: sexta-feira | C83: Finados
A84: 2007-11-15 | B84: quinta-feira | C84: Proclamação da República
A85: 2007-12-25 | B85: terça-feira | C85: Natal
A86: 2008-01-01 | B86: terça-feira | C86: Confraternização Universal
A87: 2008-02-04 | B87: segunda-feira | C87: Carnaval
A88: 2008-02-05 | B88: terça-feira | C88: Carnaval
A89: 2008-03-21 | B89: sexta-feira | C89: Paixão de Cristo
A90: 2008-04-21 | B90: segunda-feira | C90: Tiradentes
A91: 2008-05-01 | B91: quinta-feira | C91: Dia do Trabalho
A92: 2008-05-22 | B92: quinta-feira | C92: Corpus Christi
A93: 2008-09-07 | B93: domingo | C93: Independência do Brasil
A94: 2008-10-12 | B94: domingo | C94: Nossa Sr.a Aparecida - Padroeira do Brasil
A95: 2008-11-02 | B95: domingo | C95: Finados
A96: 2008-11-15 | B96: sábado | C96: Proclamação da República
A97: 2008-12-25 | B97: quinta-feira | C97: Natal
A98: 2009-01-01 | B98: quinta-feira | C98: Confraternização Universal
A99: 2009-02-23 | B99: segunda-feira | C99: Carnaval
A100: 2009-02-24 | B100: terça-feira | C100: Carnaval
A101: 2009-04-10 | B101: sexta-feira | C101: Paixão de Cristo
A102: 2009-04-21 | B102: terça-feira | C102: Tiradentes
A103: 2009-05-01 | B103: sexta-feira | C103: Dia do Trabalho
A104: 2009-06-11 | B104: quinta-feira | C104: Corpus Christi
A105: 2009-09-07 | B105: segunda-feira | C105: Independência do Brasil
A106: 2009-10-12 | B106: segunda-feira | C106: Nossa Sr.a Aparecida - Padroeira do Brasil
A107: 2009-11-02 | B107: segunda-feira | C107: Finados
A108: 2009-11-15 | B108: domingo | C108: Proclamação da República
A109: 2009-12-25 | B109: sexta-feira | C109: Natal
A110: 2010-01-01 | B110: sexta-feira | C110: Confraternização Universal
A111: 2010-02-15 | B111: segunda-feira | C111: Carnaval
A112: 2010-02-16 | B112: terça-feira | C112: Carnaval
A113: 2010-04-02 | B113: sexta-feira | C113: Paixão de Cristo
A114: 2010-04-21 | B114: quarta-feira | C114: Tiradentes
A115: 2010-05-01 | B115: sábado | C115: Dia do Trabalho
A116: 2010-06-03 | B116: quinta-feira | C116: Corpus Christi
A117: 2010-09-07 | B117: terça-feira | C117: Independência do Brasil
A118: 2010-10-12 | B118: terça-feira | C118: Nossa Sr.a Aparecida - Padroeira do Brasil
A119: 2010-11-02 | B119: terça-feira | C119: Finados
A120: 2010-11-15 | B120: segunda-feira | C120: Proclamação da República
A121: 2010-12-25 | B121: sábado | C121: Natal
A122: 2011-01-01 | B122: sábado | C122: Confraternização Universal
A123: 2011-03-07 | B123: segunda-feira | C123: Carnaval
A124: 2011-03-08 | B124: terça-feira | C124: Carnaval
A125: 2011-04-21 | B125: quinta-feira | C125: Paixão de Cristo
A126: 2011-04-22 | B126: sexta-feira | C126: Tiradentes
A127: 2011-05-01 | B127: domingo | C127: Dia do Trabalho
A128: 2011-06-23 | B128: quinta-feira | C128: Corpus Christi
A129: 2011-09-07 | B129: quarta-feira | C129: Independência do Brasil
A130: 2011-10-12 | B130: quarta-feira | C130: Nossa Sr.a Aparecida - Padroeira do Brasil
A131: 2011-11-02 | B131: quarta-feira | C131: Finados
A132: 2011-11-15 | B132: terça-feira | C132: Proclamação da República
A133: 2011-12-25 | B133: domingo | C133: Natal
A134: 2012-01-01 | B134: domingo | C134: Confraternização Universal
A135: 2012-02-20 | B135: segunda-feira | C135: Carnaval
A136: 2012-02-21 | B136: terça-feira | C136: Carnaval
A137: 2012-04-06 | B137: sexta-feira | C137: Paixão de Cristo
A138: 2012-04-21 | B138: sábado | C138: Tiradentes
A139: 2012-05-01 | B139: terça-feira | C139: Dia do Trabalho
A140: 2012-06-07 | B140: quinta-feira | C140: Corpus Christi
A141: 2012-09-07 | B141: sexta-feira | C141: Independência do Brasil
A142: 2012-10-12 | B142: sexta-feira | C142: Nossa Sr.a Aparecida - Padroeira do Brasil
A143: 2012-11-02 | B143: sexta-feira | C143: Finados
A144: 2012-11-15 | B144: quinta-feira | C144: Proclamação da República
A145: 2012-12-25 | B145: terça-feira | C145: Natal
A146: 2013-01-01 | B146: terça-feira | C146: Confraternização Universal
A147: 2013-02-11 | B147: segunda-feira | C147: Carnaval
A148: 2013-02-12 | B148: terça-feira | C148: Carnaval
A149: 2013-03-29 | B149: sexta-feira | C149: Paixão de Cristo
A150: 2013-04-21 | B150: domingo | C150: Tiradentes
A151: 2013-05-01 | B151: quarta-feira | C151: Dia do Trabalho
A152: 2013-05-30 | B152: quinta-feira | C152: Corpus Christi
A153: 2013-09-07 | B153: sábado | C153: Independência do Brasil
A154: 2013-10-12 | B154: sábado | C154: Nossa Sr.a Aparecida - Padroeira do Brasil
A155: 2013-11-02 | B155: sábado | C155: Finados
A156: 2013-11-15 | B156: sexta-feira | C156: Proclamação da República
A157: 2013-12-25 | B157: quarta-feira | C157: Natal
A158: 2014-01-01 | B158: quarta-feira | C158: Confraternização Universal
A159: 2014-03-03 | B159: segunda-feira | C159: Carnaval
A160: 2014-03-04 | B160: terça-feira | C160: Carnaval
A161: 2014-04-18 | B161: sexta-feira | C161: Paixão de Cristo
A162: 2014-04-21 | B162: segunda-feira | C162: Tiradentes
A163: 2014-05-01 | B163: quinta-feira | C163: Dia do Trabalho
A164: 2014-06-19 | B164: quinta-feira | C164: Corpus Christi
A165: 2014-09-07 | B165: domingo | C165: Independência do Brasil
A166: 2014-10-12 | B166: domingo | C166: Nossa Sr.a Aparecida - Padroeira do Brasil
A167: 2014-11-02 | B167: domingo | C167: Finados
A168: 2014-11-15 | B168: sábado | C168: Proclamação da República
A169: 2014-12-25 | B169: quinta-feira | C169: Natal
A170: 2015-01-01 | B170: quinta-feira | C170: Confraternização Universal
A171: 2015-02-16 | B171: segunda-feira | C171: Carnaval
A172: 2015-02-17 | B172: terça-feira | C172: Carnaval
A173: 2015-04-03 | B173: sexta-feira | C173: Paixão de Cristo
A174: 2015-04-21 | B174: terça-feira | C174: Tiradentes
A175: 2015-05-01 | B175: sexta-feira | C175: Dia do Trabalho
A176: 2015-06-04 | B176: quinta-feira | C176: Corpus Christi
A177: 2015-09-07 | B177: segunda-feira | C177: Independência do Brasil
A178: 2015-10-12 | B178: segunda-feira | C178: Nossa Sr.a Aparecida - Padroeira do Brasil
A179: 2015-11-02 | B179: segunda-feira | C179: Finados
A180: 2015-11-15 | B180: domingo | C180: Proclamação da República
A181: 2015-12-25 | B181: sexta-feira | C181: Natal
A182: 2016-01-01 | B182: sexta-feira | C182: Confraternização Universal
A183: 2016-02-08 | B183: segunda-feira | C183: Carnaval
A184: 2016-02-09 | B184: terça-feira | C184: Carnaval
A185: 2016-03-25 | B185: sexta-feira | C185: Paixão de Cristo
A186: 2016-04-21 | B186: quinta-feira | C186: Tiradentes
A187: 2016-05-01 | B187: domingo | C187: Dia do Trabalho
A188: 2016-05-26 | B188: quinta-feira | C188: Corpus Christi
A189: 2016-09-07 | B189: quarta-feira | C189: Independência do Brasil
A190: 2016-10-12 | B190: quarta-feira | C190: Nossa Sr.a Aparecida - Padroeira do Brasil
A191: 2016-11-02 | B191: quarta-feira | C191: Finados
A192: 2016-11-15 | B192: terça-feira | C192: Proclamação da República
A193: 2016-12-25 | B193: domingo | C193: Natal
A194: 2017-01-01 | B194: domingo | C194: Confraternização Universal
A195: 2017-02-27 | B195: segunda-feira | C195: Carnaval
A196: 2017-02-28 | B196: terça-feira | C196: Carnaval
A197: 2017-04-14 | B197: sexta-feira | C197: Paixão de Cristo
A198: 2017-04-21 | B198: sexta-feira | C198: Tiradentes
A199: 2017-05-01 | B199: segunda-feira | C199: Dia do Trabalho
A200: 2017-06-15 | B200: quinta-feira | C200: Corpus Christi
... 738 more rows
